{"text_format":"3","workbook":"xlsx","n_sheets":3,"sheets":["Yol Haritası Verileri","Çevik Yol Haritası","Hakkında"],"not_rendered":{"defined_names":5},"read":"whole","date_system":"1900"}

{"sheet":"Yol Haritası Verileri","index":0,"n_rows":13,"n_cols":7,"rows_kept":13,"merged":[[12,1,12,4]]}
["Bu çalışma sayfasında Yol Haritası Verileri tablosuna önemli kilometre taşları veya etkinlikleri girerek bir Çevik Yol Haritası oluşturun.\nBu çalışma sayfasının başlığı B1 hücresindedir. \nEkran okuyucular için yönergeler dahil olmak üzere bu çalışma sayfasını kullanmaya ilişkin bilgiler, Hakkında çalışma sayfasındadır.\nDaha fazla yönerge için A sütununda aşağı ilerleyin.","Çevik Zaman Çizelgesi Verileri"]
["Tablo başlıkları B2 ile E2 arasındaki hücrelerdedir. Tabloyu sıralamak ve belirli öğeleri bulmak için başlık filtrelerini kullanın.\nTablo, Öncelik ve ardından Kilometre Taşı veya Etkinlik göre Artan düzende sıralandığında Çevik Yol Haritası en iyi sonucu verir.\nÖrnek veriler, B3 ile E12 arasındaki hücrelerde yer alan Yol Haritası Verileri tablosundadır. \nBir kilometre taşı veya etkinlik tamamlandığında sonuçları Çevik Yol Haritası çalışma sayfasında göstermek için karşılık gelen Sonuç alanını güncelleştirin. Etkisi olmayan kilometre taşlarını vurgulamak için “Değişiklik Yok” bilgisini girin.\nSonraki yönerge için A13 hücresine gidin.\n","Hedef","Kilometre Taşı veya Etkinlik","Öncelik","Sonuç",null,"<-- tabloyu Öncelik ve Kilometre Taşı veya Etkinlik göre artan düzende sıralayın"]
[null,"Geçerli","Etkinlik 1\nPrototip oluşturma","1 - Yüksek",null,null,"<-- tamamlanan her Kilometre Taşı için bir sonuç ekleyin. Etkisi olmayan kilometre taşlarını vurgulamak için “Değişiklik Yok” bilgisini girin."]
[null,"Kısa Vadede","Etkinlik 2\nTanıtım prototipi","1 - Yüksek"]
[null,"Geçerli","Etkinlik 6","1 - Yüksek"]
[null,"Gelecekte","Etkinlik 7\nBirinci aşama uygulamasının Dış Kaynaklandırma Geliştirmesi","1 - Yüksek"]
[null,"Tamamlandı","Etkinlik 9\nBirinci aşama onaylandı","1 - Yüksek","%10 düşüş"]
[null,"Gelecekte","Etkinlik 10","2 - Orta"]
[null,"Kısa Vadede","Etkinlik 8","2 - Orta"]
[null,"Tamamlandı","Etkinlik 3","3 - Düşük","Değişiklik Yok"]
[null,"Gelecekte","Etkinlik 4","3 - Düşük"]
[null,"Geçerli","Etkinlik 5","3 - Düşük"]
["Bu çizginin üzerindeki tabloya yeni satırlar ekleyerek yeni öğeler ekleyin.\nBu, çalışma sayfasındaki son yönergedir.","Bu çizginin üzerinde yeni satırlar ekleyerek yeni öğeler ekleyin"]

{"sheet":"Çevik Yol Haritası","index":1,"n_rows":100,"n_cols":8,"rows_kept":100}
["Yol Haritası Verileri çalışma sayfasındaki kilometre taşları ve etkinlikleri gösteren bir Çevik Yol Haritası bu çalışma sayfasındadır. \nBaşlık B1 hücresindedir. \n“Değişiklik Yok” tümcesini içeren sonuçlar açık turuncu rgb(255, 230, 210) rengiyle vurgulanır.\nTamamlanan kilometre taşları veya etkinlikleri açık yeşil rgb(237,251,219) rengiyle vurgulanır.","Çevik Yol Haritası"]
["Grafik başlıkları B2, D2, F2 ve H2 hücrelerindedir. Şunlar yazar: Tamamlandı, Geçerli, Kısa Vadede ve Gelecekte. Yol Haritası Verileri çalışma sayfasında yer alan Yol Haritası Verileri tablosundaki Hedef seçim değerlerini değiştirmek için bu başlıkları değiştirin.\nB3 ile H20 arasındaki hücreler, bu satırdaki başlıklara ilişkin Kilometre taşları ve etkinliklerini içerir. \nKilometre taşları ve etkinlikler, Yol Haritası Verileri çalışma sayfasında oluşturulur.\nBu çalışma sayfasındaki girdileri DEĞİŞTİRMEYİN veya SİLMEYİN. Bu çalışma sayfasındaki içerikleri güncelleştirmek için Yol Haritası Verileri çalışma sayfasındaki Yol Haritası Verileri tablosunu güncelleştirin.\nBu, çalışma sayfasındaki son yönergedir.","Tamamlandı",null,"Geçerli",null,"Kısa Vadede",null,"Gelecekte"]
[null,{"$f":"IFERROR(INDEX(Etkinlik,SMALL(IF(Hedef=$B$2,ROW(Etkinlik)-MIN(ROW(Etkinlik))+1),ROWS($B$3:B3)))&\" \"&CHAR(10)&(INDEX(Sonuç,SMALL(IF(Hedef=$B$2,ROW(Sonuç)-MIN(ROW(Sonuç))+1),ROWS($B$3:B3))))&CHAR(10),\"\")","v":"Etkinlik 9\nBirinci aşama onaylandı \n%10 düşüş\n"},null,{"$f":"IFERROR(INDEX(Etkinlik,SMALL(IF(Hedef=$D$2,ROW(Etkinlik)-MIN(ROW(Etkinlik))+1),ROWS($B$3:B3)))&CHAR(10),\"\")","v":"Etkinlik 1\nPrototip oluşturma\n"},null,{"$f":"IFERROR(INDEX(Etkinlik,SMALL(IF(Hedef=$F$2,ROW(Etkinlik)-MIN(ROW(Etkinlik))+1),ROWS($B$3:B3)))&CHAR(10),\"\")","v":"Etkinlik 2\nTanıtım prototipi\n"},null,{"$f":"IFERROR(INDEX(Etkinlik,SMALL(IF(Hedef=$H$2,ROW(Etkinlik)-MIN(ROW(Etkinlik))+1),ROWS($B$3:B3)))&CHAR(10),\"\")","v":"Etkinlik 7\nBirinci aşama uygulamasının Dış Kaynaklandırma Geliştirmesi\n"}]
[null,{"$f":"IFERROR(INDEX(Etkinlik,SMALL(IF(Hedef=$B$2,ROW(Etkinlik)-MIN(ROW(Etkinlik))+1),ROWS($B$3:B4)))&\" \"&CHAR(10)&(INDEX(Sonuç,SMALL(IF(Hedef=$B$2,ROW(Sonuç)-MIN(ROW(Sonuç))+1),ROWS($B$3:B4))))&CHAR(10),\"\")","v":"Etkinlik 3 \nDeğişiklik Yok\n"},null,{"$f":"IFERROR(INDEX(Etkinlik,SMALL(IF(Hedef=$D$2,ROW(Etkinlik)-MIN(ROW(Etkinlik))+1),ROWS($B$3:B4)))&CHAR(10),\"\")","v":"Etkinlik 6\n"},null,{"$f":"IFERROR(INDEX(Etkinlik,SMALL(IF(Hedef=$F$2,ROW(Etkinlik)-MIN(ROW(Etkinlik))+1),ROWS($B$3:B4)))&CHAR(10),\"\")","v":"Etkinlik 8\n"},null,{"$f":"IFERROR(INDEX(Etkinlik,SMALL(IF(Hedef=$H$2,ROW(Etkinlik)-MIN(ROW(Etkinlik))+1),ROWS($B$3:B4)))&CHAR(10),\"\")","v":"Etkinlik 10\n"}]
[null,{"$f":"IFERROR(INDEX(Etkinlik,SMALL(IF(Hedef=$B$2,ROW(Etkinlik)-MIN(ROW(Etkinlik))+1),ROWS($B$3:B5)))&\" \"&CHAR(10)&(INDEX(Sonuç,SMALL(IF(Hedef=$B$2,ROW(Sonuç)-MIN(ROW(Sonuç))+1),ROWS($B$3:B5))))&CHAR(10),\"\")","v":""},null,{"$f":"IFERROR(INDEX(Etkinlik,SMALL(IF(Hedef=$D$2,ROW(Etkinlik)-MIN(ROW(Etkinlik))+1),ROWS($B$3:B5)))&CHAR(10),\"\")","v":"Etkinlik 5\n"},null,{"$f":"IFERROR(INDEX(Etkinlik,SMALL(IF(Hedef=$F$2,ROW(Etkinlik)-MIN(ROW(Etkinlik))+1),ROWS($B$3:B5)))&CHAR(10),\"\")","v":""},null,{"$f":"IFERROR(INDEX(Etkinlik,SMALL(IF(Hedef=$H$2,ROW(Etkinlik)-MIN(ROW(Etkinlik))+1),ROWS($B$3:B5)))&CHAR(10),\"\")","v":"Etkinlik 4\n"}]
[null,{"$f":"IFERROR(INDEX(Etkinlik,SMALL(IF(Hedef=$B$2,ROW(Etkinlik)-MIN(ROW(Etkinlik))+1),ROWS($B$3:B6)))&\" \"&CHAR(10)&(INDEX(Sonuç,SMALL(IF(Hedef=$B$2,ROW(Sonuç)-MIN(ROW(Sonuç))+1),ROWS($B$3:B6))))&CHAR(10),\"\")","v":""},null,{"$f":"IFERROR(INDEX(Etkinlik,SMALL(IF(Hedef=$D$2,ROW(Etkinlik)-MIN(ROW(Etkinlik))+1),ROWS($B$3:B6)))&CHAR(10),\"\")","v":""},null,{"$f":"IFERROR(INDEX(Etkinlik,SMALL(IF(Hedef=$F$2,ROW(Etkinlik)-MIN(ROW(Etkinlik))+1),ROWS($B$3:B6)))&CHAR(10),\"\")","v":""},null,{"$f":"IFERROR(INDEX(Etkinlik,SMALL(IF(Hedef=$H$2,ROW(Etkinlik)-MIN(ROW(Etkinlik))+1),ROWS($B$3:B6)))&CHAR(10),\"\")","v":""}]
[null,{"$f":"IFERROR(INDEX(Etkinlik,SMALL(IF(Hedef=$B$2,ROW(Etkinlik)-MIN(ROW(Etkinlik))+1),ROWS($B$3:B7)))&\" \"&CHAR(10)&(INDEX(Sonuç,SMALL(IF(Hedef=$B$2,ROW(Sonuç)-MIN(ROW(Sonuç))+1),ROWS($B$3:B7))))&CHAR(10),\"\")","v":""},null,{"$f":"IFERROR(INDEX(Etkinlik,SMALL(IF(Hedef=$D$2,ROW(Etkinlik)-MIN(ROW(Etkinlik))+1),ROWS($B$3:B7)))&CHAR(10),\"\")","v":""},null,{"$f":"IFERROR(INDEX(Etkinlik,SMALL(IF(Hedef=$F$2,ROW(Etkinlik)-MIN(ROW(Etkinlik))+1),ROWS($B$3:B7)))&CHAR(10),\"\")","v":""},null,{"$f":"IFERROR(INDEX(Etkinlik,SMALL(IF(Hedef=$H$2,ROW(Etkinlik)-MIN(ROW(Etkinlik))+1),ROWS($B$3:B7)))&CHAR(10),\"\")","v":""}]
[null,{"$f":"IFERROR(INDEX(Etkinlik,SMALL(IF(Hedef=$B$2,ROW(Etkinlik)-MIN(ROW(Etkinlik))+1),ROWS($B$3:B8)))&\" \"&CHAR(10)&(INDEX(Sonuç,SMALL(IF(Hedef=$B$2,ROW(Sonuç)-MIN(ROW(Sonuç))+1),ROWS($B$3:B8))))&CHAR(10),\"\")","v":""},null,{"$f":"IFERROR(INDEX(Etkinlik,SMALL(IF(Hedef=$D$2,ROW(Etkinlik)-MIN(ROW(Etkinlik))+1),ROWS($B$3:B8)))&CHAR(10),\"\")","v":""},null,{"$f":"IFERROR(INDEX(Etkinlik,SMALL(IF(Hedef=$F$2,ROW(Etkinlik)-MIN(ROW(Etkinlik))+1),ROWS($B$3:B8)))&CHAR(10),\"\")","v":""},null,{"$f":"IFERROR(INDEX(Etkinlik,SMALL(IF(Hedef=$H$2,ROW(Etkinlik)-MIN(ROW(Etkinlik))+1),ROWS($B$3:B8)))&CHAR(10),\"\")","v":""}]
[null,{"$f":"IFERROR(INDEX(Etkinlik,SMALL(IF(Hedef=$B$2,ROW(Etkinlik)-MIN(ROW(Etkinlik))+1),ROWS($B$3:B9)))&\" \"&CHAR(10)&(INDEX(Sonuç,SMALL(IF(Hedef=$B$2,ROW(Sonuç)-MIN(ROW(Sonuç))+1),ROWS($B$3:B9))))&CHAR(10),\"\")","v":""},null,{"$f":"IFERROR(INDEX(Etkinlik,SMALL(IF(Hedef=$D$2,ROW(Etkinlik)-MIN(ROW(Etkinlik))+1),ROWS($B$3:B9)))&CHAR(10),\"\")","v":""},null,{"$f":"IFERROR(INDEX(Etkinlik,SMALL(IF(Hedef=$F$2,ROW(Etkinlik)-MIN(ROW(Etkinlik))+1),ROWS($B$3:B9)))&CHAR(10),\"\")","v":""},null,{"$f":"IFERROR(INDEX(Etkinlik,SMALL(IF(Hedef=$H$2,ROW(Etkinlik)-MIN(ROW(Etkinlik))+1),ROWS($B$3:B9)))&CHAR(10),\"\")","v":""}]
[null,{"$f":"IFERROR(INDEX(Etkinlik,SMALL(IF(Hedef=$B$2,ROW(Etkinlik)-MIN(ROW(Etkinlik))+1),ROWS($B$3:B10)))&\" \"&CHAR(10)&(INDEX(Sonuç,SMALL(IF(Hedef=$B$2,ROW(Sonuç)-MIN(ROW(Sonuç))+1),ROWS($B$3:B10))))&CHAR(10),\"\")","v":""},null,{"$f":"IFERROR(INDEX(Etkinlik,SMALL(IF(Hedef=$D$2,ROW(Etkinlik)-MIN(ROW(Etkinlik))+1),ROWS($B$3:B10)))&CHAR(10),\"\")","v":""},null,{"$f":"IFERROR(INDEX(Etkinlik,SMALL(IF(Hedef=$F$2,ROW(Etkinlik)-MIN(ROW(Etkinlik))+1),ROWS($B$3:B10)))&CHAR(10),\"\")","v":""},null,{"$f":"IFERROR(INDEX(Etkinlik,SMALL(IF(Hedef=$H$2,ROW(Etkinlik)-MIN(ROW(Etkinlik))+1),ROWS($B$3:B10)))&CHAR(10),\"\")","v":""}]
[null,{"$f":"IFERROR(INDEX(Etkinlik,SMALL(IF(Hedef=$B$2,ROW(Etkinlik)-MIN(ROW(Etkinlik))+1),ROWS($B$3:B11)))&\" \"&CHAR(10)&(INDEX(Sonuç,SMALL(IF(Hedef=$B$2,ROW(Sonuç)-MIN(ROW(Sonuç))+1),ROWS($B$3:B11))))&CHAR(10),\"\")","v":""},null,{"$f":"IFERROR(INDEX(Etkinlik,SMALL(IF(Hedef=$D$2,ROW(Etkinlik)-MIN(ROW(Etkinlik))+1),ROWS($B$3:B11)))&CHAR(10),\"\")","v":""},null,{"$f":"IFERROR(INDEX(Etkinlik,SMALL(IF(Hedef=$F$2,ROW(Etkinlik)-MIN(ROW(Etkinlik))+1),ROWS($B$3:B11)))&CHAR(10),\"\")","v":""},null,{"$f":"IFERROR(INDEX(Etkinlik,SMALL(IF(Hedef=$H$2,ROW(Etkinlik)-MIN(ROW(Etkinlik))+1),ROWS($B$3:B11)))&CHAR(10),\"\")","v":""}]
[null,{"$f":"IFERROR(INDEX(Etkinlik,SMALL(IF(Hedef=$B$2,ROW(Etkinlik)-MIN(ROW(Etkinlik))+1),ROWS($B$3:B12)))&\" \"&CHAR(10)&(INDEX(Sonuç,SMALL(IF(Hedef=$B$2,ROW(Sonuç)-MIN(ROW(Sonuç))+1),ROWS($B$3:B12))))&CHAR(10),\"\")","v":""},null,{"$f":"IFERROR(INDEX(Etkinlik,SMALL(IF(Hedef=$D$2,ROW(Etkinlik)-MIN(ROW(Etkinlik))+1),ROWS($B$3:B12)))&CHAR(10),\"\")","v":""},null,{"$f":"IFERROR(INDEX(Etkinlik,SMALL(IF(Hedef=$F$2,ROW(Etkinlik)-MIN(ROW(Etkinlik))+1),ROWS($B$3:B12)))&CHAR(10),\"\")","v":""},null,{"$f":"IFERROR(INDEX(Etkinlik,SMALL(IF(Hedef=$H$2,ROW(Etkinlik)-MIN(ROW(Etkinlik))+1),ROWS($B$3:B12)))&CHAR(10),\"\")","v":""}]
[null,{"$f":"IFERROR(INDEX(Etkinlik,SMALL(IF(Hedef=$B$2,ROW(Etkinlik)-MIN(ROW(Etkinlik))+1),ROWS($B$3:B13)))&\" \"&CHAR(10)&(INDEX(Sonuç,SMALL(IF(Hedef=$B$2,ROW(Sonuç)-MIN(ROW(Sonuç))+1),ROWS($B$3:B13))))&CHAR(10),\"\")","v":""},null,{"$f":"IFERROR(INDEX(Etkinlik,SMALL(IF(Hedef=$D$2,ROW(Etkinlik)-MIN(ROW(Etkinlik))+1),ROWS($B$3:B13)))&CHAR(10),\"\")","v":""},null,{"$f":"IFERROR(INDEX(Etkinlik,SMALL(IF(Hedef=$F$2,ROW(Etkinlik)-MIN(ROW(Etkinlik))+1),ROWS($B$3:B13)))&CHAR(10),\"\")","v":""},null,{"$f":"IFERROR(INDEX(Etkinlik,SMALL(IF(Hedef=$H$2,ROW(Etkinlik)-MIN(ROW(Etkinlik))+1),ROWS($B$3:B13)))&CHAR(10),\"\")","v":""}]
[null,{"$f":"IFERROR(INDEX(Etkinlik,SMALL(IF(Hedef=$B$2,ROW(Etkinlik)-MIN(ROW(Etkinlik))+1),ROWS($B$3:B14)))&\" \"&CHAR(10)&(INDEX(Sonuç,SMALL(IF(Hedef=$B$2,ROW(Sonuç)-MIN(ROW(Sonuç))+1),ROWS($B$3:B14))))&CHAR(10),\"\")","v":""},null,{"$f":"IFERROR(INDEX(Etkinlik,SMALL(IF(Hedef=$D$2,ROW(Etkinlik)-MIN(ROW(Etkinlik))+1),ROWS($B$3:B14)))&CHAR(10),\"\")","v":""},null,{"$f":"IFERROR(INDEX(Etkinlik,SMALL(IF(Hedef=$F$2,ROW(Etkinlik)-MIN(ROW(Etkinlik))+1),ROWS($B$3:B14)))&CHAR(10),\"\")","v":""},null,{"$f":"IFERROR(INDEX(Etkinlik,SMALL(IF(Hedef=$H$2,ROW(Etkinlik)-MIN(ROW(Etkinlik))+1),ROWS($B$3:B14)))&CHAR(10),\"\")","v":""}]
[null,{"$f":"IFERROR(INDEX(Etkinlik,SMALL(IF(Hedef=$B$2,ROW(Etkinlik)-MIN(ROW(Etkinlik))+1),ROWS($B$3:B15)))&\" \"&CHAR(10)&(INDEX(Sonuç,SMALL(IF(Hedef=$B$2,ROW(Sonuç)-MIN(ROW(Sonuç))+1),ROWS($B$3:B15))))&CHAR(10),\"\")","v":""},null,{"$f":"IFERROR(INDEX(Etkinlik,SMALL(IF(Hedef=$D$2,ROW(Etkinlik)-MIN(ROW(Etkinlik))+1),ROWS($B$3:B15)))&CHAR(10),\"\")","v":""},null,{"$f":"IFERROR(INDEX(Etkinlik,SMALL(IF(Hedef=$F$2,ROW(Etkinlik)-MIN(ROW(Etkinlik))+1),ROWS($B$3:B15)))&CHAR(10),\"\")","v":""},null,{"$f":"IFERROR(INDEX(Etkinlik,SMALL(IF(Hedef=$H$2,ROW(Etkinlik)-MIN(ROW(Etkinlik))+1),ROWS($B$3:B15)))&CHAR(10),\"\")","v":""}]
[null,{"$f":"IFERROR(INDEX(Etkinlik,SMALL(IF(Hedef=$B$2,ROW(Etkinlik)-MIN(ROW(Etkinlik))+1),ROWS($B$3:B16)))&\" \"&CHAR(10)&(INDEX(Sonuç,SMALL(IF(Hedef=$B$2,ROW(Sonuç)-MIN(ROW(Sonuç))+1),ROWS($B$3:B16))))&CHAR(10),\"\")","v":""},null,{"$f":"IFERROR(INDEX(Etkinlik,SMALL(IF(Hedef=$D$2,ROW(Etkinlik)-MIN(ROW(Etkinlik))+1),ROWS($B$3:B16)))&CHAR(10),\"\")","v":""},null,{"$f":"IFERROR(INDEX(Etkinlik,SMALL(IF(Hedef=$F$2,ROW(Etkinlik)-MIN(ROW(Etkinlik))+1),ROWS($B$3:B16)))&CHAR(10),\"\")","v":""},null,{"$f":"IFERROR(INDEX(Etkinlik,SMALL(IF(Hedef=$H$2,ROW(Etkinlik)-MIN(ROW(Etkinlik))+1),ROWS($B$3:B16)))&CHAR(10),\"\")","v":""}]
[null,{"$f":"IFERROR(INDEX(Etkinlik,SMALL(IF(Hedef=$B$2,ROW(Etkinlik)-MIN(ROW(Etkinlik))+1),ROWS($B$3:B17)))&\" \"&CHAR(10)&(INDEX(Sonuç,SMALL(IF(Hedef=$B$2,ROW(Sonuç)-MIN(ROW(Sonuç))+1),ROWS($B$3:B17))))&CHAR(10),\"\")","v":""},null,{"$f":"IFERROR(INDEX(Etkinlik,SMALL(IF(Hedef=$D$2,ROW(Etkinlik)-MIN(ROW(Etkinlik))+1),ROWS($B$3:B17)))&CHAR(10),\"\")","v":""},null,{"$f":"IFERROR(INDEX(Etkinlik,SMALL(IF(Hedef=$F$2,ROW(Etkinlik)-MIN(ROW(Etkinlik))+1),ROWS($B$3:B17)))&CHAR(10),\"\")","v":""},null,{"$f":"IFERROR(INDEX(Etkinlik,SMALL(IF(Hedef=$H$2,ROW(Etkinlik)-MIN(ROW(Etkinlik))+1),ROWS($B$3:B17)))&CHAR(10),\"\")","v":""}]
[null,{"$f":"IFERROR(INDEX(Etkinlik,SMALL(IF(Hedef=$B$2,ROW(Etkinlik)-MIN(ROW(Etkinlik))+1),ROWS($B$3:B18)))&\" \"&CHAR(10)&(INDEX(Sonuç,SMALL(IF(Hedef=$B$2,ROW(Sonuç)-MIN(ROW(Sonuç))+1),ROWS($B$3:B18))))&CHAR(10),\"\")","v":""},null,{"$f":"IFERROR(INDEX(Etkinlik,SMALL(IF(Hedef=$D$2,ROW(Etkinlik)-MIN(ROW(Etkinlik))+1),ROWS($B$3:B18)))&CHAR(10),\"\")","v":""},null,{"$f":"IFERROR(INDEX(Etkinlik,SMALL(IF(Hedef=$F$2,ROW(Etkinlik)-MIN(ROW(Etkinlik))+1),ROWS($B$3:B18)))&CHAR(10),\"\")","v":""},null,{"$f":"IFERROR(INDEX(Etkinlik,SMALL(IF(Hedef=$H$2,ROW(Etkinlik)-MIN(ROW(Etkinlik))+1),ROWS($B$3:B18)))&CHAR(10),\"\")","v":""}]
[null,{"$f":"IFERROR(INDEX(Etkinlik,SMALL(IF(Hedef=$B$2,ROW(Etkinlik)-MIN(ROW(Etkinlik))+1),ROWS($B$3:B19)))&\" \"&CHAR(10)&(INDEX(Sonuç,SMALL(IF(Hedef=$B$2,ROW(Sonuç)-MIN(ROW(Sonuç))+1),ROWS($B$3:B19))))&CHAR(10),\"\")","v":""},null,{"$f":"IFERROR(INDEX(Etkinlik,SMALL(IF(Hedef=$D$2,ROW(Etkinlik)-MIN(ROW(Etkinlik))+1),ROWS($B$3:B19)))&CHAR(10),\"\")","v":""},null,{"$f":"IFERROR(INDEX(Etkinlik,SMALL(IF(Hedef=$F$2,ROW(Etkinlik)-MIN(ROW(Etkinlik))+1),ROWS($B$3:B19)))&CHAR(10),\"\")","v":""},null,{"$f":"IFERROR(INDEX(Etkinlik,SMALL(IF(Hedef=$H$2,ROW(Etkinlik)-MIN(ROW(Etkinlik))+1),ROWS($B$3:B19)))&CHAR(10),\"\")","v":""}]
[null,{"$f":"IFERROR(INDEX(Etkinlik,SMALL(IF(Hedef=$B$2,ROW(Etkinlik)-MIN(ROW(Etkinlik))+1),ROWS($B$3:B20)))&\" \"&CHAR(10)&(INDEX(Sonuç,SMALL(IF(Hedef=$B$2,ROW(Sonuç)-MIN(ROW(Sonuç))+1),ROWS($B$3:B20))))&CHAR(10),\"\")","v":""},null,{"$f":"IFERROR(INDEX(Etkinlik,SMALL(IF(Hedef=$D$2,ROW(Etkinlik)-MIN(ROW(Etkinlik))+1),ROWS($B$3:B20)))&CHAR(10),\"\")","v":""},null,{"$f":"IFERROR(INDEX(Etkinlik,SMALL(IF(Hedef=$F$2,ROW(Etkinlik)-MIN(ROW(Etkinlik))+1),ROWS($B$3:B20)))&CHAR(10),\"\")","v":""},null,{"$f":"IFERROR(INDEX(Etkinlik,SMALL(IF(Hedef=$H$2,ROW(Etkinlik)-MIN(ROW(Etkinlik))+1),ROWS($B$3:B20)))&CHAR(10),\"\")","v":""}]
[null,{"$f":"IFERROR(INDEX(Etkinlik,SMALL(IF(Hedef=$B$2,ROW(Etkinlik)-MIN(ROW(Etkinlik))+1),ROWS($B$3:B21)))&\" \"&CHAR(10)&(INDEX(Sonuç,SMALL(IF(Hedef=$B$2,ROW(Sonuç)-MIN(ROW(Sonuç))+1),ROWS($B$3:B21))))&CHAR(10),\"\")","v":""},null,{"$f":"IFERROR(INDEX(Etkinlik,SMALL(IF(Hedef=$D$2,ROW(Etkinlik)-MIN(ROW(Etkinlik))+1),ROWS($B$3:B21)))&CHAR(10),\"\")","v":""},null,{"$f":"IFERROR(INDEX(Etkinlik,SMALL(IF(Hedef=$F$2,ROW(Etkinlik)-MIN(ROW(Etkinlik))+1),ROWS($B$3:B21)))&CHAR(10),\"\")","v":""},null,{"$f":"IFERROR(INDEX(Etkinlik,SMALL(IF(Hedef=$H$2,ROW(Etkinlik)-MIN(ROW(Etkinlik))+1),ROWS($B$3:B21)))&CHAR(10),\"\")","v":""}]
[null,{"$f":"IFERROR(INDEX(Etkinlik,SMALL(IF(Hedef=$B$2,ROW(Etkinlik)-MIN(ROW(Etkinlik))+1),ROWS($B$3:B22)))&\" \"&CHAR(10)&(INDEX(Sonuç,SMALL(IF(Hedef=$B$2,ROW(Sonuç)-MIN(ROW(Sonuç))+1),ROWS($B$3:B22))))&CHAR(10),\"\")","v":""},null,{"$f":"IFERROR(INDEX(Etkinlik,SMALL(IF(Hedef=$D$2,ROW(Etkinlik)-MIN(ROW(Etkinlik))+1),ROWS($B$3:B22)))&CHAR(10),\"\")","v":""},null,{"$f":"IFERROR(INDEX(Etkinlik,SMALL(IF(Hedef=$F$2,ROW(Etkinlik)-MIN(ROW(Etkinlik))+1),ROWS($B$3:B22)))&CHAR(10),\"\")","v":""},null,{"$f":"IFERROR(INDEX(Etkinlik,SMALL(IF(Hedef=$H$2,ROW(Etkinlik)-MIN(ROW(Etkinlik))+1),ROWS($B$3:B22)))&CHAR(10),\"\")","v":""}]
[null,{"$f":"IFERROR(INDEX(Etkinlik,SMALL(IF(Hedef=$B$2,ROW(Etkinlik)-MIN(ROW(Etkinlik))+1),ROWS($B$3:B23)))&\" \"&CHAR(10)&(INDEX(Sonuç,SMALL(IF(Hedef=$B$2,ROW(Sonuç)-MIN(ROW(Sonuç))+1),ROWS($B$3:B23))))&CHAR(10),\"\")","v":""},null,{"$f":"IFERROR(INDEX(Etkinlik,SMALL(IF(Hedef=$D$2,ROW(Etkinlik)-MIN(ROW(Etkinlik))+1),ROWS($B$3:B23)))&CHAR(10),\"\")","v":""},null,{"$f":"IFERROR(INDEX(Etkinlik,SMALL(IF(Hedef=$F$2,ROW(Etkinlik)-MIN(ROW(Etkinlik))+1),ROWS($B$3:B23)))&CHAR(10),\"\")","v":""},null,{"$f":"IFERROR(INDEX(Etkinlik,SMALL(IF(Hedef=$H$2,ROW(Etkinlik)-MIN(ROW(Etkinlik))+1),ROWS($B$3:B23)))&CHAR(10),\"\")","v":""}]
[null,{"$f":"IFERROR(INDEX(Etkinlik,SMALL(IF(Hedef=$B$2,ROW(Etkinlik)-MIN(ROW(Etkinlik))+1),ROWS($B$3:B24)))&\" \"&CHAR(10)&(INDEX(Sonuç,SMALL(IF(Hedef=$B$2,ROW(Sonuç)-MIN(ROW(Sonuç))+1),ROWS($B$3:B24))))&CHAR(10),\"\")","v":""},null,{"$f":"IFERROR(INDEX(Etkinlik,SMALL(IF(Hedef=$D$2,ROW(Etkinlik)-MIN(ROW(Etkinlik))+1),ROWS($B$3:B24)))&CHAR(10),\"\")","v":""},null,{"$f":"IFERROR(INDEX(Etkinlik,SMALL(IF(Hedef=$F$2,ROW(Etkinlik)-MIN(ROW(Etkinlik))+1),ROWS($B$3:B24)))&CHAR(10),\"\")","v":""},null,{"$f":"IFERROR(INDEX(Etkinlik,SMALL(IF(Hedef=$H$2,ROW(Etkinlik)-MIN(ROW(Etkinlik))+1),ROWS($B$3:B24)))&CHAR(10),\"\")","v":""}]
[null,{"$f":"IFERROR(INDEX(Etkinlik,SMALL(IF(Hedef=$B$2,ROW(Etkinlik)-MIN(ROW(Etkinlik))+1),ROWS($B$3:B25)))&\" \"&CHAR(10)&(INDEX(Sonuç,SMALL(IF(Hedef=$B$2,ROW(Sonuç)-MIN(ROW(Sonuç))+1),ROWS($B$3:B25))))&CHAR(10),\"\")","v":""},null,{"$f":"IFERROR(INDEX(Etkinlik,SMALL(IF(Hedef=$D$2,ROW(Etkinlik)-MIN(ROW(Etkinlik))+1),ROWS($B$3:B25)))&CHAR(10),\"\")","v":""},null,{"$f":"IFERROR(INDEX(Etkinlik,SMALL(IF(Hedef=$F$2,ROW(Etkinlik)-MIN(ROW(Etkinlik))+1),ROWS($B$3:B25)))&CHAR(10),\"\")","v":""},null,{"$f":"IFERROR(INDEX(Etkinlik,SMALL(IF(Hedef=$H$2,ROW(Etkinlik)-MIN(ROW(Etkinlik))+1),ROWS($B$3:B25)))&CHAR(10),\"\")","v":""}]
[null,{"$f":"IFERROR(INDEX(Etkinlik,SMALL(IF(Hedef=$B$2,ROW(Etkinlik)-MIN(ROW(Etkinlik))+1),ROWS($B$3:B26)))&\" \"&CHAR(10)&(INDEX(Sonuç,SMALL(IF(Hedef=$B$2,ROW(Sonuç)-MIN(ROW(Sonuç))+1),ROWS($B$3:B26))))&CHAR(10),\"\")","v":""},null,{"$f":"IFERROR(INDEX(Etkinlik,SMALL(IF(Hedef=$D$2,ROW(Etkinlik)-MIN(ROW(Etkinlik))+1),ROWS($B$3:B26)))&CHAR(10),\"\")","v":""},null,{"$f":"IFERROR(INDEX(Etkinlik,SMALL(IF(Hedef=$F$2,ROW(Etkinlik)-MIN(ROW(Etkinlik))+1),ROWS($B$3:B26)))&CHAR(10),\"\")","v":""},null,{"$f":"IFERROR(INDEX(Etkinlik,SMALL(IF(Hedef=$H$2,ROW(Etkinlik)-MIN(ROW(Etkinlik))+1),ROWS($B$3:B26)))&CHAR(10),\"\")","v":""}]
[null,{"$f":"IFERROR(INDEX(Etkinlik,SMALL(IF(Hedef=$B$2,ROW(Etkinlik)-MIN(ROW(Etkinlik))+1),ROWS($B$3:B27)))&\" \"&CHAR(10)&(INDEX(Sonuç,SMALL(IF(Hedef=$B$2,ROW(Sonuç)-MIN(ROW(Sonuç))+1),ROWS($B$3:B27))))&CHAR(10),\"\")","v":""},null,{"$f":"IFERROR(INDEX(Etkinlik,SMALL(IF(Hedef=$D$2,ROW(Etkinlik)-MIN(ROW(Etkinlik))+1),ROWS($B$3:B27)))&CHAR(10),\"\")","v":""},null,{"$f":"IFERROR(INDEX(Etkinlik,SMALL(IF(Hedef=$F$2,ROW(Etkinlik)-MIN(ROW(Etkinlik))+1),ROWS($B$3:B27)))&CHAR(10),\"\")","v":""},null,{"$f":"IFERROR(INDEX(Etkinlik,SMALL(IF(Hedef=$H$2,ROW(Etkinlik)-MIN(ROW(Etkinlik))+1),ROWS($B$3:B27)))&CHAR(10),\"\")","v":""}]
[null,{"$f":"IFERROR(INDEX(Etkinlik,SMALL(IF(Hedef=$B$2,ROW(Etkinlik)-MIN(ROW(Etkinlik))+1),ROWS($B$3:B28)))&\" \"&CHAR(10)&(INDEX(Sonuç,SMALL(IF(Hedef=$B$2,ROW(Sonuç)-MIN(ROW(Sonuç))+1),ROWS($B$3:B28))))&CHAR(10),\"\")","v":""},null,{"$f":"IFERROR(INDEX(Etkinlik,SMALL(IF(Hedef=$D$2,ROW(Etkinlik)-MIN(ROW(Etkinlik))+1),ROWS($B$3:B28)))&CHAR(10),\"\")","v":""},null,{"$f":"IFERROR(INDEX(Etkinlik,SMALL(IF(Hedef=$F$2,ROW(Etkinlik)-MIN(ROW(Etkinlik))+1),ROWS($B$3:B28)))&CHAR(10),\"\")","v":""},null,{"$f":"IFERROR(INDEX(Etkinlik,SMALL(IF(Hedef=$H$2,ROW(Etkinlik)-MIN(ROW(Etkinlik))+1),ROWS($B$3:B28)))&CHAR(10),\"\")","v":""}]
[null,{"$f":"IFERROR(INDEX(Etkinlik,SMALL(IF(Hedef=$B$2,ROW(Etkinlik)-MIN(ROW(Etkinlik))+1),ROWS($B$3:B29)))&\" \"&CHAR(10)&(INDEX(Sonuç,SMALL(IF(Hedef=$B$2,ROW(Sonuç)-MIN(ROW(Sonuç))+1),ROWS($B$3:B29))))&CHAR(10),\"\")","v":""},null,{"$f":"IFERROR(INDEX(Etkinlik,SMALL(IF(Hedef=$D$2,ROW(Etkinlik)-MIN(ROW(Etkinlik))+1),ROWS($B$3:B29)))&CHAR(10),\"\")","v":""},null,{"$f":"IFERROR(INDEX(Etkinlik,SMALL(IF(Hedef=$F$2,ROW(Etkinlik)-MIN(ROW(Etkinlik))+1),ROWS($B$3:B29)))&CHAR(10),\"\")","v":""},null,{"$f":"IFERROR(INDEX(Etkinlik,SMALL(IF(Hedef=$H$2,ROW(Etkinlik)-MIN(ROW(Etkinlik))+1),ROWS($B$3:B29)))&CHAR(10),\"\")","v":""}]
[null,{"$f":"IFERROR(INDEX(Etkinlik,SMALL(IF(Hedef=$B$2,ROW(Etkinlik)-MIN(ROW(Etkinlik))+1),ROWS($B$3:B30)))&\" \"&CHAR(10)&(INDEX(Sonuç,SMALL(IF(Hedef=$B$2,ROW(Sonuç)-MIN(ROW(Sonuç))+1),ROWS($B$3:B30))))&CHAR(10),\"\")","v":""},null,{"$f":"IFERROR(INDEX(Etkinlik,SMALL(IF(Hedef=$D$2,ROW(Etkinlik)-MIN(ROW(Etkinlik))+1),ROWS($B$3:B30)))&CHAR(10),\"\")","v":""},null,{"$f":"IFERROR(INDEX(Etkinlik,SMALL(IF(Hedef=$F$2,ROW(Etkinlik)-MIN(ROW(Etkinlik))+1),ROWS($B$3:B30)))&CHAR(10),\"\")","v":""},null,{"$f":"IFERROR(INDEX(Etkinlik,SMALL(IF(Hedef=$H$2,ROW(Etkinlik)-MIN(ROW(Etkinlik))+1),ROWS($B$3:B30)))&CHAR(10),\"\")","v":""}]
[null,{"$f":"IFERROR(INDEX(Etkinlik,SMALL(IF(Hedef=$B$2,ROW(Etkinlik)-MIN(ROW(Etkinlik))+1),ROWS($B$3:B31)))&\" \"&CHAR(10)&(INDEX(Sonuç,SMALL(IF(Hedef=$B$2,ROW(Sonuç)-MIN(ROW(Sonuç))+1),ROWS($B$3:B31))))&CHAR(10),\"\")","v":""},null,{"$f":"IFERROR(INDEX(Etkinlik,SMALL(IF(Hedef=$D$2,ROW(Etkinlik)-MIN(ROW(Etkinlik))+1),ROWS($B$3:B31)))&CHAR(10),\"\")","v":""},null,{"$f":"IFERROR(INDEX(Etkinlik,SMALL(IF(Hedef=$F$2,ROW(Etkinlik)-MIN(ROW(Etkinlik))+1),ROWS($B$3:B31)))&CHAR(10),\"\")","v":""},null,{"$f":"IFERROR(INDEX(Etkinlik,SMALL(IF(Hedef=$H$2,ROW(Etkinlik)-MIN(ROW(Etkinlik))+1),ROWS($B$3:B31)))&CHAR(10),\"\")","v":""}]
[null,{"$f":"IFERROR(INDEX(Etkinlik,SMALL(IF(Hedef=$B$2,ROW(Etkinlik)-MIN(ROW(Etkinlik))+1),ROWS($B$3:B32)))&\" \"&CHAR(10)&(INDEX(Sonuç,SMALL(IF(Hedef=$B$2,ROW(Sonuç)-MIN(ROW(Sonuç))+1),ROWS($B$3:B32))))&CHAR(10),\"\")","v":""},null,{"$f":"IFERROR(INDEX(Etkinlik,SMALL(IF(Hedef=$D$2,ROW(Etkinlik)-MIN(ROW(Etkinlik))+1),ROWS($B$3:B32)))&CHAR(10),\"\")","v":""},null,{"$f":"IFERROR(INDEX(Etkinlik,SMALL(IF(Hedef=$F$2,ROW(Etkinlik)-MIN(ROW(Etkinlik))+1),ROWS($B$3:B32)))&CHAR(10),\"\")","v":""},null,{"$f":"IFERROR(INDEX(Etkinlik,SMALL(IF(Hedef=$H$2,ROW(Etkinlik)-MIN(ROW(Etkinlik))+1),ROWS($B$3:B32)))&CHAR(10),\"\")","v":""}]
[null,{"$f":"IFERROR(INDEX(Etkinlik,SMALL(IF(Hedef=$B$2,ROW(Etkinlik)-MIN(ROW(Etkinlik))+1),ROWS($B$3:B33)))&\" \"&CHAR(10)&(INDEX(Sonuç,SMALL(IF(Hedef=$B$2,ROW(Sonuç)-MIN(ROW(Sonuç))+1),ROWS($B$3:B33))))&CHAR(10),\"\")","v":""},null,{"$f":"IFERROR(INDEX(Etkinlik,SMALL(IF(Hedef=$D$2,ROW(Etkinlik)-MIN(ROW(Etkinlik))+1),ROWS($B$3:B33)))&CHAR(10),\"\")","v":""},null,{"$f":"IFERROR(INDEX(Etkinlik,SMALL(IF(Hedef=$F$2,ROW(Etkinlik)-MIN(ROW(Etkinlik))+1),ROWS($B$3:B33)))&CHAR(10),\"\")","v":""},null,{"$f":"IFERROR(INDEX(Etkinlik,SMALL(IF(Hedef=$H$2,ROW(Etkinlik)-MIN(ROW(Etkinlik))+1),ROWS($B$3:B33)))&CHAR(10),\"\")","v":""}]
[null,{"$f":"IFERROR(INDEX(Etkinlik,SMALL(IF(Hedef=$B$2,ROW(Etkinlik)-MIN(ROW(Etkinlik))+1),ROWS($B$3:B34)))&\" \"&CHAR(10)&(INDEX(Sonuç,SMALL(IF(Hedef=$B$2,ROW(Sonuç)-MIN(ROW(Sonuç))+1),ROWS($B$3:B34))))&CHAR(10),\"\")","v":""},null,{"$f":"IFERROR(INDEX(Etkinlik,SMALL(IF(Hedef=$D$2,ROW(Etkinlik)-MIN(ROW(Etkinlik))+1),ROWS($B$3:B34)))&CHAR(10),\"\")","v":""},null,{"$f":"IFERROR(INDEX(Etkinlik,SMALL(IF(Hedef=$F$2,ROW(Etkinlik)-MIN(ROW(Etkinlik))+1),ROWS($B$3:B34)))&CHAR(10),\"\")","v":""},null,{"$f":"IFERROR(INDEX(Etkinlik,SMALL(IF(Hedef=$H$2,ROW(Etkinlik)-MIN(ROW(Etkinlik))+1),ROWS($B$3:B34)))&CHAR(10),\"\")","v":""}]
[null,{"$f":"IFERROR(INDEX(Etkinlik,SMALL(IF(Hedef=$B$2,ROW(Etkinlik)-MIN(ROW(Etkinlik))+1),ROWS($B$3:B35)))&\" \"&CHAR(10)&(INDEX(Sonuç,SMALL(IF(Hedef=$B$2,ROW(Sonuç)-MIN(ROW(Sonuç))+1),ROWS($B$3:B35))))&CHAR(10),\"\")","v":""},null,{"$f":"IFERROR(INDEX(Etkinlik,SMALL(IF(Hedef=$D$2,ROW(Etkinlik)-MIN(ROW(Etkinlik))+1),ROWS($B$3:B35)))&CHAR(10),\"\")","v":""},null,{"$f":"IFERROR(INDEX(Etkinlik,SMALL(IF(Hedef=$F$2,ROW(Etkinlik)-MIN(ROW(Etkinlik))+1),ROWS($B$3:B35)))&CHAR(10),\"\")","v":""},null,{"$f":"IFERROR(INDEX(Etkinlik,SMALL(IF(Hedef=$H$2,ROW(Etkinlik)-MIN(ROW(Etkinlik))+1),ROWS($B$3:B35)))&CHAR(10),\"\")","v":""}]
[null,{"$f":"IFERROR(INDEX(Etkinlik,SMALL(IF(Hedef=$B$2,ROW(Etkinlik)-MIN(ROW(Etkinlik))+1),ROWS($B$3:B36)))&\" \"&CHAR(10)&(INDEX(Sonuç,SMALL(IF(Hedef=$B$2,ROW(Sonuç)-MIN(ROW(Sonuç))+1),ROWS($B$3:B36))))&CHAR(10),\"\")","v":""},null,{"$f":"IFERROR(INDEX(Etkinlik,SMALL(IF(Hedef=$D$2,ROW(Etkinlik)-MIN(ROW(Etkinlik))+1),ROWS($B$3:B36)))&CHAR(10),\"\")","v":""},null,{"$f":"IFERROR(INDEX(Etkinlik,SMALL(IF(Hedef=$F$2,ROW(Etkinlik)-MIN(ROW(Etkinlik))+1),ROWS($B$3:B36)))&CHAR(10),\"\")","v":""},null,{"$f":"IFERROR(INDEX(Etkinlik,SMALL(IF(Hedef=$H$2,ROW(Etkinlik)-MIN(ROW(Etkinlik))+1),ROWS($B$3:B36)))&CHAR(10),\"\")","v":""}]
[null,{"$f":"IFERROR(INDEX(Etkinlik,SMALL(IF(Hedef=$B$2,ROW(Etkinlik)-MIN(ROW(Etkinlik))+1),ROWS($B$3:B37)))&\" \"&CHAR(10)&(INDEX(Sonuç,SMALL(IF(Hedef=$B$2,ROW(Sonuç)-MIN(ROW(Sonuç))+1),ROWS($B$3:B37))))&CHAR(10),\"\")","v":""},null,{"$f":"IFERROR(INDEX(Etkinlik,SMALL(IF(Hedef=$D$2,ROW(Etkinlik)-MIN(ROW(Etkinlik))+1),ROWS($B$3:B37)))&CHAR(10),\"\")","v":""},null,{"$f":"IFERROR(INDEX(Etkinlik,SMALL(IF(Hedef=$F$2,ROW(Etkinlik)-MIN(ROW(Etkinlik))+1),ROWS($B$3:B37)))&CHAR(10),\"\")","v":""},null,{"$f":"IFERROR(INDEX(Etkinlik,SMALL(IF(Hedef=$H$2,ROW(Etkinlik)-MIN(ROW(Etkinlik))+1),ROWS($B$3:B37)))&CHAR(10),\"\")","v":""}]
[null,{"$f":"IFERROR(INDEX(Etkinlik,SMALL(IF(Hedef=$B$2,ROW(Etkinlik)-MIN(ROW(Etkinlik))+1),ROWS($B$3:B38)))&\" \"&CHAR(10)&(INDEX(Sonuç,SMALL(IF(Hedef=$B$2,ROW(Sonuç)-MIN(ROW(Sonuç))+1),ROWS($B$3:B38))))&CHAR(10),\"\")","v":""},null,{"$f":"IFERROR(INDEX(Etkinlik,SMALL(IF(Hedef=$D$2,ROW(Etkinlik)-MIN(ROW(Etkinlik))+1),ROWS($B$3:B38)))&CHAR(10),\"\")","v":""},null,{"$f":"IFERROR(INDEX(Etkinlik,SMALL(IF(Hedef=$F$2,ROW(Etkinlik)-MIN(ROW(Etkinlik))+1),ROWS($B$3:B38)))&CHAR(10),\"\")","v":""},null,{"$f":"IFERROR(INDEX(Etkinlik,SMALL(IF(Hedef=$H$2,ROW(Etkinlik)-MIN(ROW(Etkinlik))+1),ROWS($B$3:B38)))&CHAR(10),\"\")","v":""}]
[null,{"$f":"IFERROR(INDEX(Etkinlik,SMALL(IF(Hedef=$B$2,ROW(Etkinlik)-MIN(ROW(Etkinlik))+1),ROWS($B$3:B39)))&\" \"&CHAR(10)&(INDEX(Sonuç,SMALL(IF(Hedef=$B$2,ROW(Sonuç)-MIN(ROW(Sonuç))+1),ROWS($B$3:B39))))&CHAR(10),\"\")","v":""},null,{"$f":"IFERROR(INDEX(Etkinlik,SMALL(IF(Hedef=$D$2,ROW(Etkinlik)-MIN(ROW(Etkinlik))+1),ROWS($B$3:B39)))&CHAR(10),\"\")","v":""},null,{"$f":"IFERROR(INDEX(Etkinlik,SMALL(IF(Hedef=$F$2,ROW(Etkinlik)-MIN(ROW(Etkinlik))+1),ROWS($B$3:B39)))&CHAR(10),\"\")","v":""},null,{"$f":"IFERROR(INDEX(Etkinlik,SMALL(IF(Hedef=$H$2,ROW(Etkinlik)-MIN(ROW(Etkinlik))+1),ROWS($B$3:B39)))&CHAR(10),\"\")","v":""}]
[null,{"$f":"IFERROR(INDEX(Etkinlik,SMALL(IF(Hedef=$B$2,ROW(Etkinlik)-MIN(ROW(Etkinlik))+1),ROWS($B$3:B40)))&\" \"&CHAR(10)&(INDEX(Sonuç,SMALL(IF(Hedef=$B$2,ROW(Sonuç)-MIN(ROW(Sonuç))+1),ROWS($B$3:B40))))&CHAR(10),\"\")","v":""},null,{"$f":"IFERROR(INDEX(Etkinlik,SMALL(IF(Hedef=$D$2,ROW(Etkinlik)-MIN(ROW(Etkinlik))+1),ROWS($B$3:B40)))&CHAR(10),\"\")","v":""},null,{"$f":"IFERROR(INDEX(Etkinlik,SMALL(IF(Hedef=$F$2,ROW(Etkinlik)-MIN(ROW(Etkinlik))+1),ROWS($B$3:B40)))&CHAR(10),\"\")","v":""},null,{"$f":"IFERROR(INDEX(Etkinlik,SMALL(IF(Hedef=$H$2,ROW(Etkinlik)-MIN(ROW(Etkinlik))+1),ROWS($B$3:B40)))&CHAR(10),\"\")","v":""}]
[null,{"$f":"IFERROR(INDEX(Etkinlik,SMALL(IF(Hedef=$B$2,ROW(Etkinlik)-MIN(ROW(Etkinlik))+1),ROWS($B$3:B41)))&\" \"&CHAR(10)&(INDEX(Sonuç,SMALL(IF(Hedef=$B$2,ROW(Sonuç)-MIN(ROW(Sonuç))+1),ROWS($B$3:B41))))&CHAR(10),\"\")","v":""},null,{"$f":"IFERROR(INDEX(Etkinlik,SMALL(IF(Hedef=$D$2,ROW(Etkinlik)-MIN(ROW(Etkinlik))+1),ROWS($B$3:B41)))&CHAR(10),\"\")","v":""},null,{"$f":"IFERROR(INDEX(Etkinlik,SMALL(IF(Hedef=$F$2,ROW(Etkinlik)-MIN(ROW(Etkinlik))+1),ROWS($B$3:B41)))&CHAR(10),\"\")","v":""},null,{"$f":"IFERROR(INDEX(Etkinlik,SMALL(IF(Hedef=$H$2,ROW(Etkinlik)-MIN(ROW(Etkinlik))+1),ROWS($B$3:B41)))&CHAR(10),\"\")","v":""}]
[null,{"$f":"IFERROR(INDEX(Etkinlik,SMALL(IF(Hedef=$B$2,ROW(Etkinlik)-MIN(ROW(Etkinlik))+1),ROWS($B$3:B42)))&\" \"&CHAR(10)&(INDEX(Sonuç,SMALL(IF(Hedef=$B$2,ROW(Sonuç)-MIN(ROW(Sonuç))+1),ROWS($B$3:B42))))&CHAR(10),\"\")","v":""},null,{"$f":"IFERROR(INDEX(Etkinlik,SMALL(IF(Hedef=$D$2,ROW(Etkinlik)-MIN(ROW(Etkinlik))+1),ROWS($B$3:B42)))&CHAR(10),\"\")","v":""},null,{"$f":"IFERROR(INDEX(Etkinlik,SMALL(IF(Hedef=$F$2,ROW(Etkinlik)-MIN(ROW(Etkinlik))+1),ROWS($B$3:B42)))&CHAR(10),\"\")","v":""},null,{"$f":"IFERROR(INDEX(Etkinlik,SMALL(IF(Hedef=$H$2,ROW(Etkinlik)-MIN(ROW(Etkinlik))+1),ROWS($B$3:B42)))&CHAR(10),\"\")","v":""}]
[null,{"$f":"IFERROR(INDEX(Etkinlik,SMALL(IF(Hedef=$B$2,ROW(Etkinlik)-MIN(ROW(Etkinlik))+1),ROWS($B$3:B43)))&\" \"&CHAR(10)&(INDEX(Sonuç,SMALL(IF(Hedef=$B$2,ROW(Sonuç)-MIN(ROW(Sonuç))+1),ROWS($B$3:B43))))&CHAR(10),\"\")","v":""},null,{"$f":"IFERROR(INDEX(Etkinlik,SMALL(IF(Hedef=$D$2,ROW(Etkinlik)-MIN(ROW(Etkinlik))+1),ROWS($B$3:B43)))&CHAR(10),\"\")","v":""},null,{"$f":"IFERROR(INDEX(Etkinlik,SMALL(IF(Hedef=$F$2,ROW(Etkinlik)-MIN(ROW(Etkinlik))+1),ROWS($B$3:B43)))&CHAR(10),\"\")","v":""},null,{"$f":"IFERROR(INDEX(Etkinlik,SMALL(IF(Hedef=$H$2,ROW(Etkinlik)-MIN(ROW(Etkinlik))+1),ROWS($B$3:B43)))&CHAR(10),\"\")","v":""}]
[null,{"$f":"IFERROR(INDEX(Etkinlik,SMALL(IF(Hedef=$B$2,ROW(Etkinlik)-MIN(ROW(Etkinlik))+1),ROWS($B$3:B44)))&\" \"&CHAR(10)&(INDEX(Sonuç,SMALL(IF(Hedef=$B$2,ROW(Sonuç)-MIN(ROW(Sonuç))+1),ROWS($B$3:B44))))&CHAR(10),\"\")","v":""},null,{"$f":"IFERROR(INDEX(Etkinlik,SMALL(IF(Hedef=$D$2,ROW(Etkinlik)-MIN(ROW(Etkinlik))+1),ROWS($B$3:B44)))&CHAR(10),\"\")","v":""},null,{"$f":"IFERROR(INDEX(Etkinlik,SMALL(IF(Hedef=$F$2,ROW(Etkinlik)-MIN(ROW(Etkinlik))+1),ROWS($B$3:B44)))&CHAR(10),\"\")","v":""},null,{"$f":"IFERROR(INDEX(Etkinlik,SMALL(IF(Hedef=$H$2,ROW(Etkinlik)-MIN(ROW(Etkinlik))+1),ROWS($B$3:B44)))&CHAR(10),\"\")","v":""}]
[null,{"$f":"IFERROR(INDEX(Etkinlik,SMALL(IF(Hedef=$B$2,ROW(Etkinlik)-MIN(ROW(Etkinlik))+1),ROWS($B$3:B45)))&\" \"&CHAR(10)&(INDEX(Sonuç,SMALL(IF(Hedef=$B$2,ROW(Sonuç)-MIN(ROW(Sonuç))+1),ROWS($B$3:B45))))&CHAR(10),\"\")","v":""},null,{"$f":"IFERROR(INDEX(Etkinlik,SMALL(IF(Hedef=$D$2,ROW(Etkinlik)-MIN(ROW(Etkinlik))+1),ROWS($B$3:B45)))&CHAR(10),\"\")","v":""},null,{"$f":"IFERROR(INDEX(Etkinlik,SMALL(IF(Hedef=$F$2,ROW(Etkinlik)-MIN(ROW(Etkinlik))+1),ROWS($B$3:B45)))&CHAR(10),\"\")","v":""},null,{"$f":"IFERROR(INDEX(Etkinlik,SMALL(IF(Hedef=$H$2,ROW(Etkinlik)-MIN(ROW(Etkinlik))+1),ROWS($B$3:B45)))&CHAR(10),\"\")","v":""}]
[null,{"$f":"IFERROR(INDEX(Etkinlik,SMALL(IF(Hedef=$B$2,ROW(Etkinlik)-MIN(ROW(Etkinlik))+1),ROWS($B$3:B46)))&\" \"&CHAR(10)&(INDEX(Sonuç,SMALL(IF(Hedef=$B$2,ROW(Sonuç)-MIN(ROW(Sonuç))+1),ROWS($B$3:B46))))&CHAR(10),\"\")","v":""},null,{"$f":"IFERROR(INDEX(Etkinlik,SMALL(IF(Hedef=$D$2,ROW(Etkinlik)-MIN(ROW(Etkinlik))+1),ROWS($B$3:B46)))&CHAR(10),\"\")","v":""},null,{"$f":"IFERROR(INDEX(Etkinlik,SMALL(IF(Hedef=$F$2,ROW(Etkinlik)-MIN(ROW(Etkinlik))+1),ROWS($B$3:B46)))&CHAR(10),\"\")","v":""},null,{"$f":"IFERROR(INDEX(Etkinlik,SMALL(IF(Hedef=$H$2,ROW(Etkinlik)-MIN(ROW(Etkinlik))+1),ROWS($B$3:B46)))&CHAR(10),\"\")","v":""}]
[null,{"$f":"IFERROR(INDEX(Etkinlik,SMALL(IF(Hedef=$B$2,ROW(Etkinlik)-MIN(ROW(Etkinlik))+1),ROWS($B$3:B47)))&\" \"&CHAR(10)&(INDEX(Sonuç,SMALL(IF(Hedef=$B$2,ROW(Sonuç)-MIN(ROW(Sonuç))+1),ROWS($B$3:B47))))&CHAR(10),\"\")","v":""},null,{"$f":"IFERROR(INDEX(Etkinlik,SMALL(IF(Hedef=$D$2,ROW(Etkinlik)-MIN(ROW(Etkinlik))+1),ROWS($B$3:B47)))&CHAR(10),\"\")","v":""},null,{"$f":"IFERROR(INDEX(Etkinlik,SMALL(IF(Hedef=$F$2,ROW(Etkinlik)-MIN(ROW(Etkinlik))+1),ROWS($B$3:B47)))&CHAR(10),\"\")","v":""},null,{"$f":"IFERROR(INDEX(Etkinlik,SMALL(IF(Hedef=$H$2,ROW(Etkinlik)-MIN(ROW(Etkinlik))+1),ROWS($B$3:B47)))&CHAR(10),\"\")","v":""}]
[null,{"$f":"IFERROR(INDEX(Etkinlik,SMALL(IF(Hedef=$B$2,ROW(Etkinlik)-MIN(ROW(Etkinlik))+1),ROWS($B$3:B48)))&\" \"&CHAR(10)&(INDEX(Sonuç,SMALL(IF(Hedef=$B$2,ROW(Sonuç)-MIN(ROW(Sonuç))+1),ROWS($B$3:B48))))&CHAR(10),\"\")","v":""},null,{"$f":"IFERROR(INDEX(Etkinlik,SMALL(IF(Hedef=$D$2,ROW(Etkinlik)-MIN(ROW(Etkinlik))+1),ROWS($B$3:B48)))&CHAR(10),\"\")","v":""},null,{"$f":"IFERROR(INDEX(Etkinlik,SMALL(IF(Hedef=$F$2,ROW(Etkinlik)-MIN(ROW(Etkinlik))+1),ROWS($B$3:B48)))&CHAR(10),\"\")","v":""},null,{"$f":"IFERROR(INDEX(Etkinlik,SMALL(IF(Hedef=$H$2,ROW(Etkinlik)-MIN(ROW(Etkinlik))+1),ROWS($B$3:B48)))&CHAR(10),\"\")","v":""}]
[null,{"$f":"IFERROR(INDEX(Etkinlik,SMALL(IF(Hedef=$B$2,ROW(Etkinlik)-MIN(ROW(Etkinlik))+1),ROWS($B$3:B49)))&\" \"&CHAR(10)&(INDEX(Sonuç,SMALL(IF(Hedef=$B$2,ROW(Sonuç)-MIN(ROW(Sonuç))+1),ROWS($B$3:B49))))&CHAR(10),\"\")","v":""},null,{"$f":"IFERROR(INDEX(Etkinlik,SMALL(IF(Hedef=$D$2,ROW(Etkinlik)-MIN(ROW(Etkinlik))+1),ROWS($B$3:B49)))&CHAR(10),\"\")","v":""},null,{"$f":"IFERROR(INDEX(Etkinlik,SMALL(IF(Hedef=$F$2,ROW(Etkinlik)-MIN(ROW(Etkinlik))+1),ROWS($B$3:B49)))&CHAR(10),\"\")","v":""},null,{"$f":"IFERROR(INDEX(Etkinlik,SMALL(IF(Hedef=$H$2,ROW(Etkinlik)-MIN(ROW(Etkinlik))+1),ROWS($B$3:B49)))&CHAR(10),\"\")","v":""}]
[null,{"$f":"IFERROR(INDEX(Etkinlik,SMALL(IF(Hedef=$B$2,ROW(Etkinlik)-MIN(ROW(Etkinlik))+1),ROWS($B$3:B50)))&\" \"&CHAR(10)&(INDEX(Sonuç,SMALL(IF(Hedef=$B$2,ROW(Sonuç)-MIN(ROW(Sonuç))+1),ROWS($B$3:B50))))&CHAR(10),\"\")","v":""},null,{"$f":"IFERROR(INDEX(Etkinlik,SMALL(IF(Hedef=$D$2,ROW(Etkinlik)-MIN(ROW(Etkinlik))+1),ROWS($B$3:B50)))&CHAR(10),\"\")","v":""},null,{"$f":"IFERROR(INDEX(Etkinlik,SMALL(IF(Hedef=$F$2,ROW(Etkinlik)-MIN(ROW(Etkinlik))+1),ROWS($B$3:B50)))&CHAR(10),\"\")","v":""},null,{"$f":"IFERROR(INDEX(Etkinlik,SMALL(IF(Hedef=$H$2,ROW(Etkinlik)-MIN(ROW(Etkinlik))+1),ROWS($B$3:B50)))&CHAR(10),\"\")","v":""}]
[null,{"$f":"IFERROR(INDEX(Etkinlik,SMALL(IF(Hedef=$B$2,ROW(Etkinlik)-MIN(ROW(Etkinlik))+1),ROWS($B$3:B51)))&\" \"&CHAR(10)&(INDEX(Sonuç,SMALL(IF(Hedef=$B$2,ROW(Sonuç)-MIN(ROW(Sonuç))+1),ROWS($B$3:B51))))&CHAR(10),\"\")","v":""},null,{"$f":"IFERROR(INDEX(Etkinlik,SMALL(IF(Hedef=$D$2,ROW(Etkinlik)-MIN(ROW(Etkinlik))+1),ROWS($B$3:B51)))&CHAR(10),\"\")","v":""},null,{"$f":"IFERROR(INDEX(Etkinlik,SMALL(IF(Hedef=$F$2,ROW(Etkinlik)-MIN(ROW(Etkinlik))+1),ROWS($B$3:B51)))&CHAR(10),\"\")","v":""},null,{"$f":"IFERROR(INDEX(Etkinlik,SMALL(IF(Hedef=$H$2,ROW(Etkinlik)-MIN(ROW(Etkinlik))+1),ROWS($B$3:B51)))&CHAR(10),\"\")","v":""}]
[null,{"$f":"IFERROR(INDEX(Etkinlik,SMALL(IF(Hedef=$B$2,ROW(Etkinlik)-MIN(ROW(Etkinlik))+1),ROWS($B$3:B52)))&\" \"&CHAR(10)&(INDEX(Sonuç,SMALL(IF(Hedef=$B$2,ROW(Sonuç)-MIN(ROW(Sonuç))+1),ROWS($B$3:B52))))&CHAR(10),\"\")","v":""},null,{"$f":"IFERROR(INDEX(Etkinlik,SMALL(IF(Hedef=$D$2,ROW(Etkinlik)-MIN(ROW(Etkinlik))+1),ROWS($B$3:B52)))&CHAR(10),\"\")","v":""},null,{"$f":"IFERROR(INDEX(Etkinlik,SMALL(IF(Hedef=$F$2,ROW(Etkinlik)-MIN(ROW(Etkinlik))+1),ROWS($B$3:B52)))&CHAR(10),\"\")","v":""},null,{"$f":"IFERROR(INDEX(Etkinlik,SMALL(IF(Hedef=$H$2,ROW(Etkinlik)-MIN(ROW(Etkinlik))+1),ROWS($B$3:B52)))&CHAR(10),\"\")","v":""}]
[null,{"$f":"IFERROR(INDEX(Etkinlik,SMALL(IF(Hedef=$B$2,ROW(Etkinlik)-MIN(ROW(Etkinlik))+1),ROWS($B$3:B53)))&\" \"&CHAR(10)&(INDEX(Sonuç,SMALL(IF(Hedef=$B$2,ROW(Sonuç)-MIN(ROW(Sonuç))+1),ROWS($B$3:B53))))&CHAR(10),\"\")","v":""},null,{"$f":"IFERROR(INDEX(Etkinlik,SMALL(IF(Hedef=$D$2,ROW(Etkinlik)-MIN(ROW(Etkinlik))+1),ROWS($B$3:B53)))&CHAR(10),\"\")","v":""},null,{"$f":"IFERROR(INDEX(Etkinlik,SMALL(IF(Hedef=$F$2,ROW(Etkinlik)-MIN(ROW(Etkinlik))+1),ROWS($B$3:B53)))&CHAR(10),\"\")","v":""},null,{"$f":"IFERROR(INDEX(Etkinlik,SMALL(IF(Hedef=$H$2,ROW(Etkinlik)-MIN(ROW(Etkinlik))+1),ROWS($B$3:B53)))&CHAR(10),\"\")","v":""}]
[null,{"$f":"IFERROR(INDEX(Etkinlik,SMALL(IF(Hedef=$B$2,ROW(Etkinlik)-MIN(ROW(Etkinlik))+1),ROWS($B$3:B54)))&\" \"&CHAR(10)&(INDEX(Sonuç,SMALL(IF(Hedef=$B$2,ROW(Sonuç)-MIN(ROW(Sonuç))+1),ROWS($B$3:B54))))&CHAR(10),\"\")","v":""},null,{"$f":"IFERROR(INDEX(Etkinlik,SMALL(IF(Hedef=$D$2,ROW(Etkinlik)-MIN(ROW(Etkinlik))+1),ROWS($B$3:B54)))&CHAR(10),\"\")","v":""},null,{"$f":"IFERROR(INDEX(Etkinlik,SMALL(IF(Hedef=$F$2,ROW(Etkinlik)-MIN(ROW(Etkinlik))+1),ROWS($B$3:B54)))&CHAR(10),\"\")","v":""},null,{"$f":"IFERROR(INDEX(Etkinlik,SMALL(IF(Hedef=$H$2,ROW(Etkinlik)-MIN(ROW(Etkinlik))+1),ROWS($B$3:B54)))&CHAR(10),\"\")","v":""}]
[null,{"$f":"IFERROR(INDEX(Etkinlik,SMALL(IF(Hedef=$B$2,ROW(Etkinlik)-MIN(ROW(Etkinlik))+1),ROWS($B$3:B55)))&\" \"&CHAR(10)&(INDEX(Sonuç,SMALL(IF(Hedef=$B$2,ROW(Sonuç)-MIN(ROW(Sonuç))+1),ROWS($B$3:B55))))&CHAR(10),\"\")","v":""},null,{"$f":"IFERROR(INDEX(Etkinlik,SMALL(IF(Hedef=$D$2,ROW(Etkinlik)-MIN(ROW(Etkinlik))+1),ROWS($B$3:B55)))&CHAR(10),\"\")","v":""},null,{"$f":"IFERROR(INDEX(Etkinlik,SMALL(IF(Hedef=$F$2,ROW(Etkinlik)-MIN(ROW(Etkinlik))+1),ROWS($B$3:B55)))&CHAR(10),\"\")","v":""},null,{"$f":"IFERROR(INDEX(Etkinlik,SMALL(IF(Hedef=$H$2,ROW(Etkinlik)-MIN(ROW(Etkinlik))+1),ROWS($B$3:B55)))&CHAR(10),\"\")","v":""}]
[null,{"$f":"IFERROR(INDEX(Etkinlik,SMALL(IF(Hedef=$B$2,ROW(Etkinlik)-MIN(ROW(Etkinlik))+1),ROWS($B$3:B56)))&\" \"&CHAR(10)&(INDEX(Sonuç,SMALL(IF(Hedef=$B$2,ROW(Sonuç)-MIN(ROW(Sonuç))+1),ROWS($B$3:B56))))&CHAR(10),\"\")","v":""},null,{"$f":"IFERROR(INDEX(Etkinlik,SMALL(IF(Hedef=$D$2,ROW(Etkinlik)-MIN(ROW(Etkinlik))+1),ROWS($B$3:B56)))&CHAR(10),\"\")","v":""},null,{"$f":"IFERROR(INDEX(Etkinlik,SMALL(IF(Hedef=$F$2,ROW(Etkinlik)-MIN(ROW(Etkinlik))+1),ROWS($B$3:B56)))&CHAR(10),\"\")","v":""},null,{"$f":"IFERROR(INDEX(Etkinlik,SMALL(IF(Hedef=$H$2,ROW(Etkinlik)-MIN(ROW(Etkinlik))+1),ROWS($B$3:B56)))&CHAR(10),\"\")","v":""}]
[null,{"$f":"IFERROR(INDEX(Etkinlik,SMALL(IF(Hedef=$B$2,ROW(Etkinlik)-MIN(ROW(Etkinlik))+1),ROWS($B$3:B57)))&\" \"&CHAR(10)&(INDEX(Sonuç,SMALL(IF(Hedef=$B$2,ROW(Sonuç)-MIN(ROW(Sonuç))+1),ROWS($B$3:B57))))&CHAR(10),\"\")","v":""},null,{"$f":"IFERROR(INDEX(Etkinlik,SMALL(IF(Hedef=$D$2,ROW(Etkinlik)-MIN(ROW(Etkinlik))+1),ROWS($B$3:B57)))&CHAR(10),\"\")","v":""},null,{"$f":"IFERROR(INDEX(Etkinlik,SMALL(IF(Hedef=$F$2,ROW(Etkinlik)-MIN(ROW(Etkinlik))+1),ROWS($B$3:B57)))&CHAR(10),\"\")","v":""},null,{"$f":"IFERROR(INDEX(Etkinlik,SMALL(IF(Hedef=$H$2,ROW(Etkinlik)-MIN(ROW(Etkinlik))+1),ROWS($B$3:B57)))&CHAR(10),\"\")","v":""}]
[null,{"$f":"IFERROR(INDEX(Etkinlik,SMALL(IF(Hedef=$B$2,ROW(Etkinlik)-MIN(ROW(Etkinlik))+1),ROWS($B$3:B58)))&\" \"&CHAR(10)&(INDEX(Sonuç,SMALL(IF(Hedef=$B$2,ROW(Sonuç)-MIN(ROW(Sonuç))+1),ROWS($B$3:B58))))&CHAR(10),\"\")","v":""},null,{"$f":"IFERROR(INDEX(Etkinlik,SMALL(IF(Hedef=$D$2,ROW(Etkinlik)-MIN(ROW(Etkinlik))+1),ROWS($B$3:B58)))&CHAR(10),\"\")","v":""},null,{"$f":"IFERROR(INDEX(Etkinlik,SMALL(IF(Hedef=$F$2,ROW(Etkinlik)-MIN(ROW(Etkinlik))+1),ROWS($B$3:B58)))&CHAR(10),\"\")","v":""},null,{"$f":"IFERROR(INDEX(Etkinlik,SMALL(IF(Hedef=$H$2,ROW(Etkinlik)-MIN(ROW(Etkinlik))+1),ROWS($B$3:B58)))&CHAR(10),\"\")","v":""}]
[null,{"$f":"IFERROR(INDEX(Etkinlik,SMALL(IF(Hedef=$B$2,ROW(Etkinlik)-MIN(ROW(Etkinlik))+1),ROWS($B$3:B59)))&\" \"&CHAR(10)&(INDEX(Sonuç,SMALL(IF(Hedef=$B$2,ROW(Sonuç)-MIN(ROW(Sonuç))+1),ROWS($B$3:B59))))&CHAR(10),\"\")","v":""},null,{"$f":"IFERROR(INDEX(Etkinlik,SMALL(IF(Hedef=$D$2,ROW(Etkinlik)-MIN(ROW(Etkinlik))+1),ROWS($B$3:B59)))&CHAR(10),\"\")","v":""},null,{"$f":"IFERROR(INDEX(Etkinlik,SMALL(IF(Hedef=$F$2,ROW(Etkinlik)-MIN(ROW(Etkinlik))+1),ROWS($B$3:B59)))&CHAR(10),\"\")","v":""},null,{"$f":"IFERROR(INDEX(Etkinlik,SMALL(IF(Hedef=$H$2,ROW(Etkinlik)-MIN(ROW(Etkinlik))+1),ROWS($B$3:B59)))&CHAR(10),\"\")","v":""}]
[null,{"$f":"IFERROR(INDEX(Etkinlik,SMALL(IF(Hedef=$B$2,ROW(Etkinlik)-MIN(ROW(Etkinlik))+1),ROWS($B$3:B60)))&\" \"&CHAR(10)&(INDEX(Sonuç,SMALL(IF(Hedef=$B$2,ROW(Sonuç)-MIN(ROW(Sonuç))+1),ROWS($B$3:B60))))&CHAR(10),\"\")","v":""},null,{"$f":"IFERROR(INDEX(Etkinlik,SMALL(IF(Hedef=$D$2,ROW(Etkinlik)-MIN(ROW(Etkinlik))+1),ROWS($B$3:B60)))&CHAR(10),\"\")","v":""},null,{"$f":"IFERROR(INDEX(Etkinlik,SMALL(IF(Hedef=$F$2,ROW(Etkinlik)-MIN(ROW(Etkinlik))+1),ROWS($B$3:B60)))&CHAR(10),\"\")","v":""},null,{"$f":"IFERROR(INDEX(Etkinlik,SMALL(IF(Hedef=$H$2,ROW(Etkinlik)-MIN(ROW(Etkinlik))+1),ROWS($B$3:B60)))&CHAR(10),\"\")","v":""}]
[null,{"$f":"IFERROR(INDEX(Etkinlik,SMALL(IF(Hedef=$B$2,ROW(Etkinlik)-MIN(ROW(Etkinlik))+1),ROWS($B$3:B61)))&\" \"&CHAR(10)&(INDEX(Sonuç,SMALL(IF(Hedef=$B$2,ROW(Sonuç)-MIN(ROW(Sonuç))+1),ROWS($B$3:B61))))&CHAR(10),\"\")","v":""},null,{"$f":"IFERROR(INDEX(Etkinlik,SMALL(IF(Hedef=$D$2,ROW(Etkinlik)-MIN(ROW(Etkinlik))+1),ROWS($B$3:B61)))&CHAR(10),\"\")","v":""},null,{"$f":"IFERROR(INDEX(Etkinlik,SMALL(IF(Hedef=$F$2,ROW(Etkinlik)-MIN(ROW(Etkinlik))+1),ROWS($B$3:B61)))&CHAR(10),\"\")","v":""},null,{"$f":"IFERROR(INDEX(Etkinlik,SMALL(IF(Hedef=$H$2,ROW(Etkinlik)-MIN(ROW(Etkinlik))+1),ROWS($B$3:B61)))&CHAR(10),\"\")","v":""}]
[null,{"$f":"IFERROR(INDEX(Etkinlik,SMALL(IF(Hedef=$B$2,ROW(Etkinlik)-MIN(ROW(Etkinlik))+1),ROWS($B$3:B62)))&\" \"&CHAR(10)&(INDEX(Sonuç,SMALL(IF(Hedef=$B$2,ROW(Sonuç)-MIN(ROW(Sonuç))+1),ROWS($B$3:B62))))&CHAR(10),\"\")","v":""},null,{"$f":"IFERROR(INDEX(Etkinlik,SMALL(IF(Hedef=$D$2,ROW(Etkinlik)-MIN(ROW(Etkinlik))+1),ROWS($B$3:B62)))&CHAR(10),\"\")","v":""},null,{"$f":"IFERROR(INDEX(Etkinlik,SMALL(IF(Hedef=$F$2,ROW(Etkinlik)-MIN(ROW(Etkinlik))+1),ROWS($B$3:B62)))&CHAR(10),\"\")","v":""},null,{"$f":"IFERROR(INDEX(Etkinlik,SMALL(IF(Hedef=$H$2,ROW(Etkinlik)-MIN(ROW(Etkinlik))+1),ROWS($B$3:B62)))&CHAR(10),\"\")","v":""}]
[null,{"$f":"IFERROR(INDEX(Etkinlik,SMALL(IF(Hedef=$B$2,ROW(Etkinlik)-MIN(ROW(Etkinlik))+1),ROWS($B$3:B63)))&\" \"&CHAR(10)&(INDEX(Sonuç,SMALL(IF(Hedef=$B$2,ROW(Sonuç)-MIN(ROW(Sonuç))+1),ROWS($B$3:B63))))&CHAR(10),\"\")","v":""},null,{"$f":"IFERROR(INDEX(Etkinlik,SMALL(IF(Hedef=$D$2,ROW(Etkinlik)-MIN(ROW(Etkinlik))+1),ROWS($B$3:B63)))&CHAR(10),\"\")","v":""},null,{"$f":"IFERROR(INDEX(Etkinlik,SMALL(IF(Hedef=$F$2,ROW(Etkinlik)-MIN(ROW(Etkinlik))+1),ROWS($B$3:B63)))&CHAR(10),\"\")","v":""},null,{"$f":"IFERROR(INDEX(Etkinlik,SMALL(IF(Hedef=$H$2,ROW(Etkinlik)-MIN(ROW(Etkinlik))+1),ROWS($B$3:B63)))&CHAR(10),\"\")","v":""}]
[null,{"$f":"IFERROR(INDEX(Etkinlik,SMALL(IF(Hedef=$B$2,ROW(Etkinlik)-MIN(ROW(Etkinlik))+1),ROWS($B$3:B64)))&\" \"&CHAR(10)&(INDEX(Sonuç,SMALL(IF(Hedef=$B$2,ROW(Sonuç)-MIN(ROW(Sonuç))+1),ROWS($B$3:B64))))&CHAR(10),\"\")","v":""},null,{"$f":"IFERROR(INDEX(Etkinlik,SMALL(IF(Hedef=$D$2,ROW(Etkinlik)-MIN(ROW(Etkinlik))+1),ROWS($B$3:B64)))&CHAR(10),\"\")","v":""},null,{"$f":"IFERROR(INDEX(Etkinlik,SMALL(IF(Hedef=$F$2,ROW(Etkinlik)-MIN(ROW(Etkinlik))+1),ROWS($B$3:B64)))&CHAR(10),\"\")","v":""},null,{"$f":"IFERROR(INDEX(Etkinlik,SMALL(IF(Hedef=$H$2,ROW(Etkinlik)-MIN(ROW(Etkinlik))+1),ROWS($B$3:B64)))&CHAR(10),\"\")","v":""}]
[null,{"$f":"IFERROR(INDEX(Etkinlik,SMALL(IF(Hedef=$B$2,ROW(Etkinlik)-MIN(ROW(Etkinlik))+1),ROWS($B$3:B65)))&\" \"&CHAR(10)&(INDEX(Sonuç,SMALL(IF(Hedef=$B$2,ROW(Sonuç)-MIN(ROW(Sonuç))+1),ROWS($B$3:B65))))&CHAR(10),\"\")","v":""},null,{"$f":"IFERROR(INDEX(Etkinlik,SMALL(IF(Hedef=$D$2,ROW(Etkinlik)-MIN(ROW(Etkinlik))+1),ROWS($B$3:B65)))&CHAR(10),\"\")","v":""},null,{"$f":"IFERROR(INDEX(Etkinlik,SMALL(IF(Hedef=$F$2,ROW(Etkinlik)-MIN(ROW(Etkinlik))+1),ROWS($B$3:B65)))&CHAR(10),\"\")","v":""},null,{"$f":"IFERROR(INDEX(Etkinlik,SMALL(IF(Hedef=$H$2,ROW(Etkinlik)-MIN(ROW(Etkinlik))+1),ROWS($B$3:B65)))&CHAR(10),\"\")","v":""}]
[null,{"$f":"IFERROR(INDEX(Etkinlik,SMALL(IF(Hedef=$B$2,ROW(Etkinlik)-MIN(ROW(Etkinlik))+1),ROWS($B$3:B66)))&\" \"&CHAR(10)&(INDEX(Sonuç,SMALL(IF(Hedef=$B$2,ROW(Sonuç)-MIN(ROW(Sonuç))+1),ROWS($B$3:B66))))&CHAR(10),\"\")","v":""},null,{"$f":"IFERROR(INDEX(Etkinlik,SMALL(IF(Hedef=$D$2,ROW(Etkinlik)-MIN(ROW(Etkinlik))+1),ROWS($B$3:B66)))&CHAR(10),\"\")","v":""},null,{"$f":"IFERROR(INDEX(Etkinlik,SMALL(IF(Hedef=$F$2,ROW(Etkinlik)-MIN(ROW(Etkinlik))+1),ROWS($B$3:B66)))&CHAR(10),\"\")","v":""},null,{"$f":"IFERROR(INDEX(Etkinlik,SMALL(IF(Hedef=$H$2,ROW(Etkinlik)-MIN(ROW(Etkinlik))+1),ROWS($B$3:B66)))&CHAR(10),\"\")","v":""}]
[null,{"$f":"IFERROR(INDEX(Etkinlik,SMALL(IF(Hedef=$B$2,ROW(Etkinlik)-MIN(ROW(Etkinlik))+1),ROWS($B$3:B67)))&\" \"&CHAR(10)&(INDEX(Sonuç,SMALL(IF(Hedef=$B$2,ROW(Sonuç)-MIN(ROW(Sonuç))+1),ROWS($B$3:B67))))&CHAR(10),\"\")","v":""},null,{"$f":"IFERROR(INDEX(Etkinlik,SMALL(IF(Hedef=$D$2,ROW(Etkinlik)-MIN(ROW(Etkinlik))+1),ROWS($B$3:B67)))&CHAR(10),\"\")","v":""},null,{"$f":"IFERROR(INDEX(Etkinlik,SMALL(IF(Hedef=$F$2,ROW(Etkinlik)-MIN(ROW(Etkinlik))+1),ROWS($B$3:B67)))&CHAR(10),\"\")","v":""},null,{"$f":"IFERROR(INDEX(Etkinlik,SMALL(IF(Hedef=$H$2,ROW(Etkinlik)-MIN(ROW(Etkinlik))+1),ROWS($B$3:B67)))&CHAR(10),\"\")","v":""}]
[null,{"$f":"IFERROR(INDEX(Etkinlik,SMALL(IF(Hedef=$B$2,ROW(Etkinlik)-MIN(ROW(Etkinlik))+1),ROWS($B$3:B68)))&\" \"&CHAR(10)&(INDEX(Sonuç,SMALL(IF(Hedef=$B$2,ROW(Sonuç)-MIN(ROW(Sonuç))+1),ROWS($B$3:B68))))&CHAR(10),\"\")","v":""},null,{"$f":"IFERROR(INDEX(Etkinlik,SMALL(IF(Hedef=$D$2,ROW(Etkinlik)-MIN(ROW(Etkinlik))+1),ROWS($B$3:B68)))&CHAR(10),\"\")","v":""},null,{"$f":"IFERROR(INDEX(Etkinlik,SMALL(IF(Hedef=$F$2,ROW(Etkinlik)-MIN(ROW(Etkinlik))+1),ROWS($B$3:B68)))&CHAR(10),\"\")","v":""},null,{"$f":"IFERROR(INDEX(Etkinlik,SMALL(IF(Hedef=$H$2,ROW(Etkinlik)-MIN(ROW(Etkinlik))+1),ROWS($B$3:B68)))&CHAR(10),\"\")","v":""}]
[null,{"$f":"IFERROR(INDEX(Etkinlik,SMALL(IF(Hedef=$B$2,ROW(Etkinlik)-MIN(ROW(Etkinlik))+1),ROWS($B$3:B69)))&\" \"&CHAR(10)&(INDEX(Sonuç,SMALL(IF(Hedef=$B$2,ROW(Sonuç)-MIN(ROW(Sonuç))+1),ROWS($B$3:B69))))&CHAR(10),\"\")","v":""},null,{"$f":"IFERROR(INDEX(Etkinlik,SMALL(IF(Hedef=$D$2,ROW(Etkinlik)-MIN(ROW(Etkinlik))+1),ROWS($B$3:B69)))&CHAR(10),\"\")","v":""},null,{"$f":"IFERROR(INDEX(Etkinlik,SMALL(IF(Hedef=$F$2,ROW(Etkinlik)-MIN(ROW(Etkinlik))+1),ROWS($B$3:B69)))&CHAR(10),\"\")","v":""},null,{"$f":"IFERROR(INDEX(Etkinlik,SMALL(IF(Hedef=$H$2,ROW(Etkinlik)-MIN(ROW(Etkinlik))+1),ROWS($B$3:B69)))&CHAR(10),\"\")","v":""}]
[null,{"$f":"IFERROR(INDEX(Etkinlik,SMALL(IF(Hedef=$B$2,ROW(Etkinlik)-MIN(ROW(Etkinlik))+1),ROWS($B$3:B70)))&\" \"&CHAR(10)&(INDEX(Sonuç,SMALL(IF(Hedef=$B$2,ROW(Sonuç)-MIN(ROW(Sonuç))+1),ROWS($B$3:B70))))&CHAR(10),\"\")","v":""},null,{"$f":"IFERROR(INDEX(Etkinlik,SMALL(IF(Hedef=$D$2,ROW(Etkinlik)-MIN(ROW(Etkinlik))+1),ROWS($B$3:B70)))&CHAR(10),\"\")","v":""},null,{"$f":"IFERROR(INDEX(Etkinlik,SMALL(IF(Hedef=$F$2,ROW(Etkinlik)-MIN(ROW(Etkinlik))+1),ROWS($B$3:B70)))&CHAR(10),\"\")","v":""},null,{"$f":"IFERROR(INDEX(Etkinlik,SMALL(IF(Hedef=$H$2,ROW(Etkinlik)-MIN(ROW(Etkinlik))+1),ROWS($B$3:B70)))&CHAR(10),\"\")","v":""}]
[null,{"$f":"IFERROR(INDEX(Etkinlik,SMALL(IF(Hedef=$B$2,ROW(Etkinlik)-MIN(ROW(Etkinlik))+1),ROWS($B$3:B71)))&\" \"&CHAR(10)&(INDEX(Sonuç,SMALL(IF(Hedef=$B$2,ROW(Sonuç)-MIN(ROW(Sonuç))+1),ROWS($B$3:B71))))&CHAR(10),\"\")","v":""},null,{"$f":"IFERROR(INDEX(Etkinlik,SMALL(IF(Hedef=$D$2,ROW(Etkinlik)-MIN(ROW(Etkinlik))+1),ROWS($B$3:B71)))&CHAR(10),\"\")","v":""},null,{"$f":"IFERROR(INDEX(Etkinlik,SMALL(IF(Hedef=$F$2,ROW(Etkinlik)-MIN(ROW(Etkinlik))+1),ROWS($B$3:B71)))&CHAR(10),\"\")","v":""},null,{"$f":"IFERROR(INDEX(Etkinlik,SMALL(IF(Hedef=$H$2,ROW(Etkinlik)-MIN(ROW(Etkinlik))+1),ROWS($B$3:B71)))&CHAR(10),\"\")","v":""}]
[null,{"$f":"IFERROR(INDEX(Etkinlik,SMALL(IF(Hedef=$B$2,ROW(Etkinlik)-MIN(ROW(Etkinlik))+1),ROWS($B$3:B72)))&\" \"&CHAR(10)&(INDEX(Sonuç,SMALL(IF(Hedef=$B$2,ROW(Sonuç)-MIN(ROW(Sonuç))+1),ROWS($B$3:B72))))&CHAR(10),\"\")","v":""},null,{"$f":"IFERROR(INDEX(Etkinlik,SMALL(IF(Hedef=$D$2,ROW(Etkinlik)-MIN(ROW(Etkinlik))+1),ROWS($B$3:B72)))&CHAR(10),\"\")","v":""},null,{"$f":"IFERROR(INDEX(Etkinlik,SMALL(IF(Hedef=$F$2,ROW(Etkinlik)-MIN(ROW(Etkinlik))+1),ROWS($B$3:B72)))&CHAR(10),\"\")","v":""},null,{"$f":"IFERROR(INDEX(Etkinlik,SMALL(IF(Hedef=$H$2,ROW(Etkinlik)-MIN(ROW(Etkinlik))+1),ROWS($B$3:B72)))&CHAR(10),\"\")","v":""}]
[null,{"$f":"IFERROR(INDEX(Etkinlik,SMALL(IF(Hedef=$B$2,ROW(Etkinlik)-MIN(ROW(Etkinlik))+1),ROWS($B$3:B73)))&\" \"&CHAR(10)&(INDEX(Sonuç,SMALL(IF(Hedef=$B$2,ROW(Sonuç)-MIN(ROW(Sonuç))+1),ROWS($B$3:B73))))&CHAR(10),\"\")","v":""},null,{"$f":"IFERROR(INDEX(Etkinlik,SMALL(IF(Hedef=$D$2,ROW(Etkinlik)-MIN(ROW(Etkinlik))+1),ROWS($B$3:B73)))&CHAR(10),\"\")","v":""},null,{"$f":"IFERROR(INDEX(Etkinlik,SMALL(IF(Hedef=$F$2,ROW(Etkinlik)-MIN(ROW(Etkinlik))+1),ROWS($B$3:B73)))&CHAR(10),\"\")","v":""},null,{"$f":"IFERROR(INDEX(Etkinlik,SMALL(IF(Hedef=$H$2,ROW(Etkinlik)-MIN(ROW(Etkinlik))+1),ROWS($B$3:B73)))&CHAR(10),\"\")","v":""}]
[null,{"$f":"IFERROR(INDEX(Etkinlik,SMALL(IF(Hedef=$B$2,ROW(Etkinlik)-MIN(ROW(Etkinlik))+1),ROWS($B$3:B74)))&\" \"&CHAR(10)&(INDEX(Sonuç,SMALL(IF(Hedef=$B$2,ROW(Sonuç)-MIN(ROW(Sonuç))+1),ROWS($B$3:B74))))&CHAR(10),\"\")","v":""},null,{"$f":"IFERROR(INDEX(Etkinlik,SMALL(IF(Hedef=$D$2,ROW(Etkinlik)-MIN(ROW(Etkinlik))+1),ROWS($B$3:B74)))&CHAR(10),\"\")","v":""},null,{"$f":"IFERROR(INDEX(Etkinlik,SMALL(IF(Hedef=$F$2,ROW(Etkinlik)-MIN(ROW(Etkinlik))+1),ROWS($B$3:B74)))&CHAR(10),\"\")","v":""},null,{"$f":"IFERROR(INDEX(Etkinlik,SMALL(IF(Hedef=$H$2,ROW(Etkinlik)-MIN(ROW(Etkinlik))+1),ROWS($B$3:B74)))&CHAR(10),\"\")","v":""}]
[null,{"$f":"IFERROR(INDEX(Etkinlik,SMALL(IF(Hedef=$B$2,ROW(Etkinlik)-MIN(ROW(Etkinlik))+1),ROWS($B$3:B75)))&\" \"&CHAR(10)&(INDEX(Sonuç,SMALL(IF(Hedef=$B$2,ROW(Sonuç)-MIN(ROW(Sonuç))+1),ROWS($B$3:B75))))&CHAR(10),\"\")","v":""},null,{"$f":"IFERROR(INDEX(Etkinlik,SMALL(IF(Hedef=$D$2,ROW(Etkinlik)-MIN(ROW(Etkinlik))+1),ROWS($B$3:B75)))&CHAR(10),\"\")","v":""},null,{"$f":"IFERROR(INDEX(Etkinlik,SMALL(IF(Hedef=$F$2,ROW(Etkinlik)-MIN(ROW(Etkinlik))+1),ROWS($B$3:B75)))&CHAR(10),\"\")","v":""},null,{"$f":"IFERROR(INDEX(Etkinlik,SMALL(IF(Hedef=$H$2,ROW(Etkinlik)-MIN(ROW(Etkinlik))+1),ROWS($B$3:B75)))&CHAR(10),\"\")","v":""}]
[null,{"$f":"IFERROR(INDEX(Etkinlik,SMALL(IF(Hedef=$B$2,ROW(Etkinlik)-MIN(ROW(Etkinlik))+1),ROWS($B$3:B76)))&\" \"&CHAR(10)&(INDEX(Sonuç,SMALL(IF(Hedef=$B$2,ROW(Sonuç)-MIN(ROW(Sonuç))+1),ROWS($B$3:B76))))&CHAR(10),\"\")","v":""},null,{"$f":"IFERROR(INDEX(Etkinlik,SMALL(IF(Hedef=$D$2,ROW(Etkinlik)-MIN(ROW(Etkinlik))+1),ROWS($B$3:B76)))&CHAR(10),\"\")","v":""},null,{"$f":"IFERROR(INDEX(Etkinlik,SMALL(IF(Hedef=$F$2,ROW(Etkinlik)-MIN(ROW(Etkinlik))+1),ROWS($B$3:B76)))&CHAR(10),\"\")","v":""},null,{"$f":"IFERROR(INDEX(Etkinlik,SMALL(IF(Hedef=$H$2,ROW(Etkinlik)-MIN(ROW(Etkinlik))+1),ROWS($B$3:B76)))&CHAR(10),\"\")","v":""}]
[null,{"$f":"IFERROR(INDEX(Etkinlik,SMALL(IF(Hedef=$B$2,ROW(Etkinlik)-MIN(ROW(Etkinlik))+1),ROWS($B$3:B77)))&\" \"&CHAR(10)&(INDEX(Sonuç,SMALL(IF(Hedef=$B$2,ROW(Sonuç)-MIN(ROW(Sonuç))+1),ROWS($B$3:B77))))&CHAR(10),\"\")","v":""},null,{"$f":"IFERROR(INDEX(Etkinlik,SMALL(IF(Hedef=$D$2,ROW(Etkinlik)-MIN(ROW(Etkinlik))+1),ROWS($B$3:B77)))&CHAR(10),\"\")","v":""},null,{"$f":"IFERROR(INDEX(Etkinlik,SMALL(IF(Hedef=$F$2,ROW(Etkinlik)-MIN(ROW(Etkinlik))+1),ROWS($B$3:B77)))&CHAR(10),\"\")","v":""},null,{"$f":"IFERROR(INDEX(Etkinlik,SMALL(IF(Hedef=$H$2,ROW(Etkinlik)-MIN(ROW(Etkinlik))+1),ROWS($B$3:B77)))&CHAR(10),\"\")","v":""}]
[null,{"$f":"IFERROR(INDEX(Etkinlik,SMALL(IF(Hedef=$B$2,ROW(Etkinlik)-MIN(ROW(Etkinlik))+1),ROWS($B$3:B78)))&\" \"&CHAR(10)&(INDEX(Sonuç,SMALL(IF(Hedef=$B$2,ROW(Sonuç)-MIN(ROW(Sonuç))+1),ROWS($B$3:B78))))&CHAR(10),\"\")","v":""},null,{"$f":"IFERROR(INDEX(Etkinlik,SMALL(IF(Hedef=$D$2,ROW(Etkinlik)-MIN(ROW(Etkinlik))+1),ROWS($B$3:B78)))&CHAR(10),\"\")","v":""},null,{"$f":"IFERROR(INDEX(Etkinlik,SMALL(IF(Hedef=$F$2,ROW(Etkinlik)-MIN(ROW(Etkinlik))+1),ROWS($B$3:B78)))&CHAR(10),\"\")","v":""},null,{"$f":"IFERROR(INDEX(Etkinlik,SMALL(IF(Hedef=$H$2,ROW(Etkinlik)-MIN(ROW(Etkinlik))+1),ROWS($B$3:B78)))&CHAR(10),\"\")","v":""}]
[null,{"$f":"IFERROR(INDEX(Etkinlik,SMALL(IF(Hedef=$B$2,ROW(Etkinlik)-MIN(ROW(Etkinlik))+1),ROWS($B$3:B79)))&\" \"&CHAR(10)&(INDEX(Sonuç,SMALL(IF(Hedef=$B$2,ROW(Sonuç)-MIN(ROW(Sonuç))+1),ROWS($B$3:B79))))&CHAR(10),\"\")","v":""},null,{"$f":"IFERROR(INDEX(Etkinlik,SMALL(IF(Hedef=$D$2,ROW(Etkinlik)-MIN(ROW(Etkinlik))+1),ROWS($B$3:B79)))&CHAR(10),\"\")","v":""},null,{"$f":"IFERROR(INDEX(Etkinlik,SMALL(IF(Hedef=$F$2,ROW(Etkinlik)-MIN(ROW(Etkinlik))+1),ROWS($B$3:B79)))&CHAR(10),\"\")","v":""},null,{"$f":"IFERROR(INDEX(Etkinlik,SMALL(IF(Hedef=$H$2,ROW(Etkinlik)-MIN(ROW(Etkinlik))+1),ROWS($B$3:B79)))&CHAR(10),\"\")","v":""}]
[null,{"$f":"IFERROR(INDEX(Etkinlik,SMALL(IF(Hedef=$B$2,ROW(Etkinlik)-MIN(ROW(Etkinlik))+1),ROWS($B$3:B80)))&\" \"&CHAR(10)&(INDEX(Sonuç,SMALL(IF(Hedef=$B$2,ROW(Sonuç)-MIN(ROW(Sonuç))+1),ROWS($B$3:B80))))&CHAR(10),\"\")","v":""},null,{"$f":"IFERROR(INDEX(Etkinlik,SMALL(IF(Hedef=$D$2,ROW(Etkinlik)-MIN(ROW(Etkinlik))+1),ROWS($B$3:B80)))&CHAR(10),\"\")","v":""},null,{"$f":"IFERROR(INDEX(Etkinlik,SMALL(IF(Hedef=$F$2,ROW(Etkinlik)-MIN(ROW(Etkinlik))+1),ROWS($B$3:B80)))&CHAR(10),\"\")","v":""},null,{"$f":"IFERROR(INDEX(Etkinlik,SMALL(IF(Hedef=$H$2,ROW(Etkinlik)-MIN(ROW(Etkinlik))+1),ROWS($B$3:B80)))&CHAR(10),\"\")","v":""}]
[null,{"$f":"IFERROR(INDEX(Etkinlik,SMALL(IF(Hedef=$B$2,ROW(Etkinlik)-MIN(ROW(Etkinlik))+1),ROWS($B$3:B81)))&\" \"&CHAR(10)&(INDEX(Sonuç,SMALL(IF(Hedef=$B$2,ROW(Sonuç)-MIN(ROW(Sonuç))+1),ROWS($B$3:B81))))&CHAR(10),\"\")","v":""},null,{"$f":"IFERROR(INDEX(Etkinlik,SMALL(IF(Hedef=$D$2,ROW(Etkinlik)-MIN(ROW(Etkinlik))+1),ROWS($B$3:B81)))&CHAR(10),\"\")","v":""},null,{"$f":"IFERROR(INDEX(Etkinlik,SMALL(IF(Hedef=$F$2,ROW(Etkinlik)-MIN(ROW(Etkinlik))+1),ROWS($B$3:B81)))&CHAR(10),\"\")","v":""},null,{"$f":"IFERROR(INDEX(Etkinlik,SMALL(IF(Hedef=$H$2,ROW(Etkinlik)-MIN(ROW(Etkinlik))+1),ROWS($B$3:B81)))&CHAR(10),\"\")","v":""}]
[null,{"$f":"IFERROR(INDEX(Etkinlik,SMALL(IF(Hedef=$B$2,ROW(Etkinlik)-MIN(ROW(Etkinlik))+1),ROWS($B$3:B82)))&\" \"&CHAR(10)&(INDEX(Sonuç,SMALL(IF(Hedef=$B$2,ROW(Sonuç)-MIN(ROW(Sonuç))+1),ROWS($B$3:B82))))&CHAR(10),\"\")","v":""},null,{"$f":"IFERROR(INDEX(Etkinlik,SMALL(IF(Hedef=$D$2,ROW(Etkinlik)-MIN(ROW(Etkinlik))+1),ROWS($B$3:B82)))&CHAR(10),\"\")","v":""},null,{"$f":"IFERROR(INDEX(Etkinlik,SMALL(IF(Hedef=$F$2,ROW(Etkinlik)-MIN(ROW(Etkinlik))+1),ROWS($B$3:B82)))&CHAR(10),\"\")","v":""},null,{"$f":"IFERROR(INDEX(Etkinlik,SMALL(IF(Hedef=$H$2,ROW(Etkinlik)-MIN(ROW(Etkinlik))+1),ROWS($B$3:B82)))&CHAR(10),\"\")","v":""}]
[null,{"$f":"IFERROR(INDEX(Etkinlik,SMALL(IF(Hedef=$B$2,ROW(Etkinlik)-MIN(ROW(Etkinlik))+1),ROWS($B$3:B83)))&\" \"&CHAR(10)&(INDEX(Sonuç,SMALL(IF(Hedef=$B$2,ROW(Sonuç)-MIN(ROW(Sonuç))+1),ROWS($B$3:B83))))&CHAR(10),\"\")","v":""},null,{"$f":"IFERROR(INDEX(Etkinlik,SMALL(IF(Hedef=$D$2,ROW(Etkinlik)-MIN(ROW(Etkinlik))+1),ROWS($B$3:B83)))&CHAR(10),\"\")","v":""},null,{"$f":"IFERROR(INDEX(Etkinlik,SMALL(IF(Hedef=$F$2,ROW(Etkinlik)-MIN(ROW(Etkinlik))+1),ROWS($B$3:B83)))&CHAR(10),\"\")","v":""},null,{"$f":"IFERROR(INDEX(Etkinlik,SMALL(IF(Hedef=$H$2,ROW(Etkinlik)-MIN(ROW(Etkinlik))+1),ROWS($B$3:B83)))&CHAR(10),\"\")","v":""}]
[null,{"$f":"IFERROR(INDEX(Etkinlik,SMALL(IF(Hedef=$B$2,ROW(Etkinlik)-MIN(ROW(Etkinlik))+1),ROWS($B$3:B84)))&\" \"&CHAR(10)&(INDEX(Sonuç,SMALL(IF(Hedef=$B$2,ROW(Sonuç)-MIN(ROW(Sonuç))+1),ROWS($B$3:B84))))&CHAR(10),\"\")","v":""},null,{"$f":"IFERROR(INDEX(Etkinlik,SMALL(IF(Hedef=$D$2,ROW(Etkinlik)-MIN(ROW(Etkinlik))+1),ROWS($B$3:B84)))&CHAR(10),\"\")","v":""},null,{"$f":"IFERROR(INDEX(Etkinlik,SMALL(IF(Hedef=$F$2,ROW(Etkinlik)-MIN(ROW(Etkinlik))+1),ROWS($B$3:B84)))&CHAR(10),\"\")","v":""},null,{"$f":"IFERROR(INDEX(Etkinlik,SMALL(IF(Hedef=$H$2,ROW(Etkinlik)-MIN(ROW(Etkinlik))+1),ROWS($B$3:B84)))&CHAR(10),\"\")","v":""}]
[null,{"$f":"IFERROR(INDEX(Etkinlik,SMALL(IF(Hedef=$B$2,ROW(Etkinlik)-MIN(ROW(Etkinlik))+1),ROWS($B$3:B85)))&\" \"&CHAR(10)&(INDEX(Sonuç,SMALL(IF(Hedef=$B$2,ROW(Sonuç)-MIN(ROW(Sonuç))+1),ROWS($B$3:B85))))&CHAR(10),\"\")","v":""},null,{"$f":"IFERROR(INDEX(Etkinlik,SMALL(IF(Hedef=$D$2,ROW(Etkinlik)-MIN(ROW(Etkinlik))+1),ROWS($B$3:B85)))&CHAR(10),\"\")","v":""},null,{"$f":"IFERROR(INDEX(Etkinlik,SMALL(IF(Hedef=$F$2,ROW(Etkinlik)-MIN(ROW(Etkinlik))+1),ROWS($B$3:B85)))&CHAR(10),\"\")","v":""},null,{"$f":"IFERROR(INDEX(Etkinlik,SMALL(IF(Hedef=$H$2,ROW(Etkinlik)-MIN(ROW(Etkinlik))+1),ROWS($B$3:B85)))&CHAR(10),\"\")","v":""}]
[null,{"$f":"IFERROR(INDEX(Etkinlik,SMALL(IF(Hedef=$B$2,ROW(Etkinlik)-MIN(ROW(Etkinlik))+1),ROWS($B$3:B86)))&\" \"&CHAR(10)&(INDEX(Sonuç,SMALL(IF(Hedef=$B$2,ROW(Sonuç)-MIN(ROW(Sonuç))+1),ROWS($B$3:B86))))&CHAR(10),\"\")","v":""},null,{"$f":"IFERROR(INDEX(Etkinlik,SMALL(IF(Hedef=$D$2,ROW(Etkinlik)-MIN(ROW(Etkinlik))+1),ROWS($B$3:B86)))&CHAR(10),\"\")","v":""},null,{"$f":"IFERROR(INDEX(Etkinlik,SMALL(IF(Hedef=$F$2,ROW(Etkinlik)-MIN(ROW(Etkinlik))+1),ROWS($B$3:B86)))&CHAR(10),\"\")","v":""},null,{"$f":"IFERROR(INDEX(Etkinlik,SMALL(IF(Hedef=$H$2,ROW(Etkinlik)-MIN(ROW(Etkinlik))+1),ROWS($B$3:B86)))&CHAR(10),\"\")","v":""}]
[null,{"$f":"IFERROR(INDEX(Etkinlik,SMALL(IF(Hedef=$B$2,ROW(Etkinlik)-MIN(ROW(Etkinlik))+1),ROWS($B$3:B87)))&\" \"&CHAR(10)&(INDEX(Sonuç,SMALL(IF(Hedef=$B$2,ROW(Sonuç)-MIN(ROW(Sonuç))+1),ROWS($B$3:B87))))&CHAR(10),\"\")","v":""},null,{"$f":"IFERROR(INDEX(Etkinlik,SMALL(IF(Hedef=$D$2,ROW(Etkinlik)-MIN(ROW(Etkinlik))+1),ROWS($B$3:B87)))&CHAR(10),\"\")","v":""},null,{"$f":"IFERROR(INDEX(Etkinlik,SMALL(IF(Hedef=$F$2,ROW(Etkinlik)-MIN(ROW(Etkinlik))+1),ROWS($B$3:B87)))&CHAR(10),\"\")","v":""},null,{"$f":"IFERROR(INDEX(Etkinlik,SMALL(IF(Hedef=$H$2,ROW(Etkinlik)-MIN(ROW(Etkinlik))+1),ROWS($B$3:B87)))&CHAR(10),\"\")","v":""}]
[null,{"$f":"IFERROR(INDEX(Etkinlik,SMALL(IF(Hedef=$B$2,ROW(Etkinlik)-MIN(ROW(Etkinlik))+1),ROWS($B$3:B88)))&\" \"&CHAR(10)&(INDEX(Sonuç,SMALL(IF(Hedef=$B$2,ROW(Sonuç)-MIN(ROW(Sonuç))+1),ROWS($B$3:B88))))&CHAR(10),\"\")","v":""},null,{"$f":"IFERROR(INDEX(Etkinlik,SMALL(IF(Hedef=$D$2,ROW(Etkinlik)-MIN(ROW(Etkinlik))+1),ROWS($B$3:B88)))&CHAR(10),\"\")","v":""},null,{"$f":"IFERROR(INDEX(Etkinlik,SMALL(IF(Hedef=$F$2,ROW(Etkinlik)-MIN(ROW(Etkinlik))+1),ROWS($B$3:B88)))&CHAR(10),\"\")","v":""},null,{"$f":"IFERROR(INDEX(Etkinlik,SMALL(IF(Hedef=$H$2,ROW(Etkinlik)-MIN(ROW(Etkinlik))+1),ROWS($B$3:B88)))&CHAR(10),\"\")","v":""}]
[null,{"$f":"IFERROR(INDEX(Etkinlik,SMALL(IF(Hedef=$B$2,ROW(Etkinlik)-MIN(ROW(Etkinlik))+1),ROWS($B$3:B89)))&\" \"&CHAR(10)&(INDEX(Sonuç,SMALL(IF(Hedef=$B$2,ROW(Sonuç)-MIN(ROW(Sonuç))+1),ROWS($B$3:B89))))&CHAR(10),\"\")","v":""},null,{"$f":"IFERROR(INDEX(Etkinlik,SMALL(IF(Hedef=$D$2,ROW(Etkinlik)-MIN(ROW(Etkinlik))+1),ROWS($B$3:B89)))&CHAR(10),\"\")","v":""},null,{"$f":"IFERROR(INDEX(Etkinlik,SMALL(IF(Hedef=$F$2,ROW(Etkinlik)-MIN(ROW(Etkinlik))+1),ROWS($B$3:B89)))&CHAR(10),\"\")","v":""},null,{"$f":"IFERROR(INDEX(Etkinlik,SMALL(IF(Hedef=$H$2,ROW(Etkinlik)-MIN(ROW(Etkinlik))+1),ROWS($B$3:B89)))&CHAR(10),\"\")","v":""}]
[null,{"$f":"IFERROR(INDEX(Etkinlik,SMALL(IF(Hedef=$B$2,ROW(Etkinlik)-MIN(ROW(Etkinlik))+1),ROWS($B$3:B90)))&\" \"&CHAR(10)&(INDEX(Sonuç,SMALL(IF(Hedef=$B$2,ROW(Sonuç)-MIN(ROW(Sonuç))+1),ROWS($B$3:B90))))&CHAR(10),\"\")","v":""},null,{"$f":"IFERROR(INDEX(Etkinlik,SMALL(IF(Hedef=$D$2,ROW(Etkinlik)-MIN(ROW(Etkinlik))+1),ROWS($B$3:B90)))&CHAR(10),\"\")","v":""},null,{"$f":"IFERROR(INDEX(Etkinlik,SMALL(IF(Hedef=$F$2,ROW(Etkinlik)-MIN(ROW(Etkinlik))+1),ROWS($B$3:B90)))&CHAR(10),\"\")","v":""},null,{"$f":"IFERROR(INDEX(Etkinlik,SMALL(IF(Hedef=$H$2,ROW(Etkinlik)-MIN(ROW(Etkinlik))+1),ROWS($B$3:B90)))&CHAR(10),\"\")","v":""}]
[null,{"$f":"IFERROR(INDEX(Etkinlik,SMALL(IF(Hedef=$B$2,ROW(Etkinlik)-MIN(ROW(Etkinlik))+1),ROWS($B$3:B91)))&\" \"&CHAR(10)&(INDEX(Sonuç,SMALL(IF(Hedef=$B$2,ROW(Sonuç)-MIN(ROW(Sonuç))+1),ROWS($B$3:B91))))&CHAR(10),\"\")","v":""},null,{"$f":"IFERROR(INDEX(Etkinlik,SMALL(IF(Hedef=$D$2,ROW(Etkinlik)-MIN(ROW(Etkinlik))+1),ROWS($B$3:B91)))&CHAR(10),\"\")","v":""},null,{"$f":"IFERROR(INDEX(Etkinlik,SMALL(IF(Hedef=$F$2,ROW(Etkinlik)-MIN(ROW(Etkinlik))+1),ROWS($B$3:B91)))&CHAR(10),\"\")","v":""},null,{"$f":"IFERROR(INDEX(Etkinlik,SMALL(IF(Hedef=$H$2,ROW(Etkinlik)-MIN(ROW(Etkinlik))+1),ROWS($B$3:B91)))&CHAR(10),\"\")","v":""}]
[null,{"$f":"IFERROR(INDEX(Etkinlik,SMALL(IF(Hedef=$B$2,ROW(Etkinlik)-MIN(ROW(Etkinlik))+1),ROWS($B$3:B92)))&\" \"&CHAR(10)&(INDEX(Sonuç,SMALL(IF(Hedef=$B$2,ROW(Sonuç)-MIN(ROW(Sonuç))+1),ROWS($B$3:B92))))&CHAR(10),\"\")","v":""},null,{"$f":"IFERROR(INDEX(Etkinlik,SMALL(IF(Hedef=$D$2,ROW(Etkinlik)-MIN(ROW(Etkinlik))+1),ROWS($B$3:B92)))&CHAR(10),\"\")","v":""},null,{"$f":"IFERROR(INDEX(Etkinlik,SMALL(IF(Hedef=$F$2,ROW(Etkinlik)-MIN(ROW(Etkinlik))+1),ROWS($B$3:B92)))&CHAR(10),\"\")","v":""},null,{"$f":"IFERROR(INDEX(Etkinlik,SMALL(IF(Hedef=$H$2,ROW(Etkinlik)-MIN(ROW(Etkinlik))+1),ROWS($B$3:B92)))&CHAR(10),\"\")","v":""}]
[null,{"$f":"IFERROR(INDEX(Etkinlik,SMALL(IF(Hedef=$B$2,ROW(Etkinlik)-MIN(ROW(Etkinlik))+1),ROWS($B$3:B93)))&\" \"&CHAR(10)&(INDEX(Sonuç,SMALL(IF(Hedef=$B$2,ROW(Sonuç)-MIN(ROW(Sonuç))+1),ROWS($B$3:B93))))&CHAR(10),\"\")","v":""},null,{"$f":"IFERROR(INDEX(Etkinlik,SMALL(IF(Hedef=$D$2,ROW(Etkinlik)-MIN(ROW(Etkinlik))+1),ROWS($B$3:B93)))&CHAR(10),\"\")","v":""},null,{"$f":"IFERROR(INDEX(Etkinlik,SMALL(IF(Hedef=$F$2,ROW(Etkinlik)-MIN(ROW(Etkinlik))+1),ROWS($B$3:B93)))&CHAR(10),\"\")","v":""},null,{"$f":"IFERROR(INDEX(Etkinlik,SMALL(IF(Hedef=$H$2,ROW(Etkinlik)-MIN(ROW(Etkinlik))+1),ROWS($B$3:B93)))&CHAR(10),\"\")","v":""}]
[null,{"$f":"IFERROR(INDEX(Etkinlik,SMALL(IF(Hedef=$B$2,ROW(Etkinlik)-MIN(ROW(Etkinlik))+1),ROWS($B$3:B94)))&\" \"&CHAR(10)&(INDEX(Sonuç,SMALL(IF(Hedef=$B$2,ROW(Sonuç)-MIN(ROW(Sonuç))+1),ROWS($B$3:B94))))&CHAR(10),\"\")","v":""},null,{"$f":"IFERROR(INDEX(Etkinlik,SMALL(IF(Hedef=$D$2,ROW(Etkinlik)-MIN(ROW(Etkinlik))+1),ROWS($B$3:B94)))&CHAR(10),\"\")","v":""},null,{"$f":"IFERROR(INDEX(Etkinlik,SMALL(IF(Hedef=$F$2,ROW(Etkinlik)-MIN(ROW(Etkinlik))+1),ROWS($B$3:B94)))&CHAR(10),\"\")","v":""},null,{"$f":"IFERROR(INDEX(Etkinlik,SMALL(IF(Hedef=$H$2,ROW(Etkinlik)-MIN(ROW(Etkinlik))+1),ROWS($B$3:B94)))&CHAR(10),\"\")","v":""}]
[null,{"$f":"IFERROR(INDEX(Etkinlik,SMALL(IF(Hedef=$B$2,ROW(Etkinlik)-MIN(ROW(Etkinlik))+1),ROWS($B$3:B95)))&\" \"&CHAR(10)&(INDEX(Sonuç,SMALL(IF(Hedef=$B$2,ROW(Sonuç)-MIN(ROW(Sonuç))+1),ROWS($B$3:B95))))&CHAR(10),\"\")","v":""},null,{"$f":"IFERROR(INDEX(Etkinlik,SMALL(IF(Hedef=$D$2,ROW(Etkinlik)-MIN(ROW(Etkinlik))+1),ROWS($B$3:B95)))&CHAR(10),\"\")","v":""},null,{"$f":"IFERROR(INDEX(Etkinlik,SMALL(IF(Hedef=$F$2,ROW(Etkinlik)-MIN(ROW(Etkinlik))+1),ROWS($B$3:B95)))&CHAR(10),\"\")","v":""},null,{"$f":"IFERROR(INDEX(Etkinlik,SMALL(IF(Hedef=$H$2,ROW(Etkinlik)-MIN(ROW(Etkinlik))+1),ROWS($B$3:B95)))&CHAR(10),\"\")","v":""}]
[null,{"$f":"IFERROR(INDEX(Etkinlik,SMALL(IF(Hedef=$B$2,ROW(Etkinlik)-MIN(ROW(Etkinlik))+1),ROWS($B$3:B96)))&\" \"&CHAR(10)&(INDEX(Sonuç,SMALL(IF(Hedef=$B$2,ROW(Sonuç)-MIN(ROW(Sonuç))+1),ROWS($B$3:B96))))&CHAR(10),\"\")","v":""},null,{"$f":"IFERROR(INDEX(Etkinlik,SMALL(IF(Hedef=$D$2,ROW(Etkinlik)-MIN(ROW(Etkinlik))+1),ROWS($B$3:B96)))&CHAR(10),\"\")","v":""},null,{"$f":"IFERROR(INDEX(Etkinlik,SMALL(IF(Hedef=$F$2,ROW(Etkinlik)-MIN(ROW(Etkinlik))+1),ROWS($B$3:B96)))&CHAR(10),\"\")","v":""},null,{"$f":"IFERROR(INDEX(Etkinlik,SMALL(IF(Hedef=$H$2,ROW(Etkinlik)-MIN(ROW(Etkinlik))+1),ROWS($B$3:B96)))&CHAR(10),\"\")","v":""}]
[null,{"$f":"IFERROR(INDEX(Etkinlik,SMALL(IF(Hedef=$B$2,ROW(Etkinlik)-MIN(ROW(Etkinlik))+1),ROWS($B$3:B97)))&\" \"&CHAR(10)&(INDEX(Sonuç,SMALL(IF(Hedef=$B$2,ROW(Sonuç)-MIN(ROW(Sonuç))+1),ROWS($B$3:B97))))&CHAR(10),\"\")","v":""},null,{"$f":"IFERROR(INDEX(Etkinlik,SMALL(IF(Hedef=$D$2,ROW(Etkinlik)-MIN(ROW(Etkinlik))+1),ROWS($B$3:B97)))&CHAR(10),\"\")","v":""},null,{"$f":"IFERROR(INDEX(Etkinlik,SMALL(IF(Hedef=$F$2,ROW(Etkinlik)-MIN(ROW(Etkinlik))+1),ROWS($B$3:B97)))&CHAR(10),\"\")","v":""},null,{"$f":"IFERROR(INDEX(Etkinlik,SMALL(IF(Hedef=$H$2,ROW(Etkinlik)-MIN(ROW(Etkinlik))+1),ROWS($B$3:B97)))&CHAR(10),\"\")","v":""}]
[null,{"$f":"IFERROR(INDEX(Etkinlik,SMALL(IF(Hedef=$B$2,ROW(Etkinlik)-MIN(ROW(Etkinlik))+1),ROWS($B$3:B98)))&\" \"&CHAR(10)&(INDEX(Sonuç,SMALL(IF(Hedef=$B$2,ROW(Sonuç)-MIN(ROW(Sonuç))+1),ROWS($B$3:B98))))&CHAR(10),\"\")","v":""},null,{"$f":"IFERROR(INDEX(Etkinlik,SMALL(IF(Hedef=$D$2,ROW(Etkinlik)-MIN(ROW(Etkinlik))+1),ROWS($B$3:B98)))&CHAR(10),\"\")","v":""},null,{"$f":"IFERROR(INDEX(Etkinlik,SMALL(IF(Hedef=$F$2,ROW(Etkinlik)-MIN(ROW(Etkinlik))+1),ROWS($B$3:B98)))&CHAR(10),\"\")","v":""},null,{"$f":"IFERROR(INDEX(Etkinlik,SMALL(IF(Hedef=$H$2,ROW(Etkinlik)-MIN(ROW(Etkinlik))+1),ROWS($B$3:B98)))&CHAR(10),\"\")","v":""}]
[null,{"$f":"IFERROR(INDEX(Etkinlik,SMALL(IF(Hedef=$B$2,ROW(Etkinlik)-MIN(ROW(Etkinlik))+1),ROWS($B$3:B99)))&\" \"&CHAR(10)&(INDEX(Sonuç,SMALL(IF(Hedef=$B$2,ROW(Sonuç)-MIN(ROW(Sonuç))+1),ROWS($B$3:B99))))&CHAR(10),\"\")","v":""},null,{"$f":"IFERROR(INDEX(Etkinlik,SMALL(IF(Hedef=$D$2,ROW(Etkinlik)-MIN(ROW(Etkinlik))+1),ROWS($B$3:B99)))&CHAR(10),\"\")","v":""},null,{"$f":"IFERROR(INDEX(Etkinlik,SMALL(IF(Hedef=$F$2,ROW(Etkinlik)-MIN(ROW(Etkinlik))+1),ROWS($B$3:B99)))&CHAR(10),\"\")","v":""},null,{"$f":"IFERROR(INDEX(Etkinlik,SMALL(IF(Hedef=$H$2,ROW(Etkinlik)-MIN(ROW(Etkinlik))+1),ROWS($B$3:B99)))&CHAR(10),\"\")","v":""}]
[null,{"$f":"IFERROR(INDEX(Etkinlik,SMALL(IF(Hedef=$B$2,ROW(Etkinlik)-MIN(ROW(Etkinlik))+1),ROWS($B$3:B100)))&\" \"&CHAR(10)&(INDEX(Sonuç,SMALL(IF(Hedef=$B$2,ROW(Sonuç)-MIN(ROW(Sonuç))+1),ROWS($B$3:B100))))&CHAR(10),\"\")","v":""},null,{"$f":"IFERROR(INDEX(Etkinlik,SMALL(IF(Hedef=$D$2,ROW(Etkinlik)-MIN(ROW(Etkinlik))+1),ROWS($B$3:B100)))&CHAR(10),\"\")","v":""},null,{"$f":"IFERROR(INDEX(Etkinlik,SMALL(IF(Hedef=$F$2,ROW(Etkinlik)-MIN(ROW(Etkinlik))+1),ROWS($B$3:B100)))&CHAR(10),\"\")","v":""},null,{"$f":"IFERROR(INDEX(Etkinlik,SMALL(IF(Hedef=$H$2,ROW(Etkinlik)-MIN(ROW(Etkinlik))+1),ROWS($B$3:B100)))&CHAR(10),\"\")","v":""}]

{"sheet":"Hakkında","index":2,"n_rows":6,"n_cols":1,"rows_kept":6}
["Bu çalışma kitabı hakkında"]
["Ekran okuyucuları için kılavuz"]
["Bu çalışma kitabında 3 çalışma sayfası vardır. \n\nYol Haritası Verileri\nÇevik Yol Haritası\nHakkında\n\nHer bir çalışma sayfası için yönergeler her çalışma sayfasının A sütunundaki A1 hücresinden başlar. Bunlar gizli metinle yazılıdır. Her adım, bu satırdaki bilgileri açıklar. Sonraki adımlar, başka bir yere açık bir şekilde yönlendirilmedikçe A2, A3 ve devamındaki hücrelerde devam eder. Örneğin, yönerge metni sonraki adım için “A6 hücresinden devam edin” der. \n\nGizli metin yazdırılmaz.\n\nBu yönergeleri bir çalışma sayfasından kaldırmak için A sütununu silmeniz yeterlidir.\n"]
["Bu Çalışma Kitabı hakkında"]
["Yol Haritası Verileri çalışma sayfasında kilometre taşı bilgilerini girin.  Tamamlandı, Geçerli, Kısa Vadede ve Gelecekte görünümünün en yüksek önceliği olan öğelerin üstte yer aldığı azalan öncelikte gösterilmesi için öncelik ve ardından kilometre taşına göre sıraladığınızdan emin olun. Çevik Yol Haritası çalışma sayfasındaki Yol Haritası otomatik olarak güncelleştirilir.\n"]
["Bu, çalışma sayfasındaki son yönergedir."]